Cogmind - Beta 10.1 @@@ ROGUE MODE // 2021.05.18 @ 18:34:40 Player: Farfid Result: Destroyed by G-73 Enforcer with Phase Gun Performance ------------- Evolutions (9) 4500 Regions Visited (34) 6800 Robots Destroyed (385) 1925 Value Destroyed (24752) 24752 Prototype IDs (53) 1060 Alien Tech Used (0) 0 Bonus (14699) 14699 TOTAL SCORE: 53736 Bonus ------- High Alert Combat Kills 2758 Follower Combat Kills 6067 Entered Garrisons 2000 Used RIF Installer 5000 Aligned with FarCom 300 Met Data Miner 300 Friendly Fire -1726 Cogmind --------- Core Integrity 0/1600 Matter 300/300 Energy 96/100 System Corruption 36% Temperature Cool (69) Movement Core (50) Location -1/Command Parts ------- > --- POWER (2) -------- (None) > --- PROPULSION (4) --- (None) > --- UTILITY (16) ----- Experimental Optical Array > --- WEAPON (3) ------- (None) > --- INVENTORY (4) ---- Relay Coupler [C] (39) Relay Coupler [Sentry] (28) Enhanced Nova Cannon Advanced Remote Datajack Peak State ------------ > --- POWER ------------ Quantum Reactor Light Quantum Reactor > --- PROPULSION ------- Biometal Leg Biometal Leg Centrium Leg Centrium Leg > --- UTILITY ---------- Advanced Cooling System Advanced Coolant Injector High-capacity Storage Unit High-capacity Storage Unit High-capacity Storage Unit Energy Well Experimental Optical Array Layered Heavy Armor Plating EM Shield Relay Coupler [NC] Relay Coupler [C] Relay Coupler [Sentry] Relay Coupler [Sentry] Relay Coupler [Demolisher] Relay Coupler [Hunter] > --- WEAPON ----------- Enhanced Nova Cannon Multirail Advanced Remote Datajack > --- INVENTORY -------- Particle Reactor Biometal Leg Advanced Coolant Injector Experimental Matter Compressor Layered Medium Armor Plating Layered Medium Armor Plating Relay Coupler [NC] Relay Coupler [NC] Relay Coupler [C] Relay Coupler [C] Relay Coupler [C] Relay Coupler [C] Relay Coupler [C] Relay Coupler [C] Relay Coupler [Sentry] Relay Coupler [Sentry] Relay Coupler [Sentry] Relay Coupler [Demolisher] Relay Coupler [Behemoth] Corruption Screen PSU Rigger Advanced Variable Charge Gun Compact HERF Cannon Multirail Enhanced Gamma Bomb Array Ragnarok Missile Launcher Advanced Remote Datajack Segregator [Rating: 173] Favorites ----------- Power Light Quantum Reactor Engine Light Angular Momentum Engine Power Core Micro Fission Core Reactor Light Quantum Reactor Propulsion Myomer Leg Treads Improved Medium Treads Leg Myomer Leg Wheel Armored Wheel Flight Unit Xenon Bombardment Thruster Utility High-capacity Storage Unit Device Improved Coolant Injector Storage High-capacity Storage Unit Processor Experimental Optical Array Hackware Relay Coupler [Grunt] Protection Improved Medium Armor Plating Weapon Advanced Remote Datajack Energy Gun EM Shotgun Energy Cannon Plasma Cannon Ballistic Gun Flak Gun Ballistic Cannon Enhanced Gauss Cannon Launcher Missile Launcher Special Weapon Advanced Remote Datajack Impact Weapon Powered Hammer Slashing Weapon Chainsword Build | -11 -10 -10 -9 -9 -9 -8 -8 -7 -7 -7 -7 -7 -7 -6 -6 -6 -6 -6 -5 -5 -5 -5 -4 -4 -3 -3 -2 -2 -2 -2 -1 -1 -1 -1 ------- Run | Scr Mat Min Mat Min Exi Min Mat Fac Gar Fac Low Low Dat Pro Fac Gar Fac Gar Fac Gar Fac Gar Fac Gar Res Gar Res Gar Res Gar Acc Gar Acc Com Slots Evolved 18 | . . . 2 . . . 2 2 . . . . . . 2 . . . 2 . . . 2 . 2 . 2 . . . 2 . . . Power 1 | . . . . . . . . . . . . . . . . . . . . . . . . . . . . . . . 1 . . . Propulsion 2 | . . . . . . . . . . . . . . . 1 . . . . . . . . . . . 1 . . . . . . . Utility 14 | . . . 2 . . . 2 2 . . . . . . . . . . 2 . . . 2 . 2 . 1 . . . 1 . . . Weapon 1 | . . . . . . . . . . . . . . . 1 . . . . . . . . . . . . . . . . . . . Parts Attached 626 | 6 10 4 4 8 . 13 26 5 29 22 8 17 . 6 8 32 4 40 17 15 3 27 18 29 30 35 14 38 10 18 43 47 11 29 Power 38 | 1 . 1 . 1 . 1 1 . 1 1 . 1 . 1 . 1 . 3 1 . . . . 1 2 2 1 8 . . 4 3 1 2 Engine 10 | 1 . 1 . 1 . . 1 . 1 1 . 1 . . . . . 2 . . . . . . . . . 1 . . . . . . Core 3 | . . . . . . 1 . . . . . . . 1 . 1 . . . . . . . . . . . . . . . . . . Reactor 25 | . . . . . . . . . . . . . . . . . . 1 1 . . . . 1 2 2 1 7 . . 4 3 1 2 Propulsion 79 | 2 3 2 1 3 . 3 2 . 2 2 1 . . . 1 9 1 4 . . . 1 3 5 1 4 2 6 . 2 4 8 1 6 Treads 4 | . . . . . . . . . . . . . . . . 2 . . . . . . 1 1 . . . . . . . . . . Leg 41 | . . . . . . . . . . . . . . . . 3 . 2 . . . . . 4 1 3 2 6 . 1 4 8 1 6 Wheel 32 | 2 3 2 1 3 . 3 2 . 2 2 1 . . . 1 4 1 2 . . . 1 2 . . . . . . . . . . . Hover . | . . . . . . . . . . . . . . . . . . . . . . . . . . . . . . . . . . . Flight 2 | . . . . . . . . . . . . . . . . . . . . . . . . . . 1 . . . 1 . . . . Utility 290 | 1 5 1 2 3 . 5 8 2 15 6 1 8 . 1 3 11 2 21 11 13 2 14 10 8 12 24 7 15 9 16 18 19 7 10 Device 89 | . . . 1 2 . 1 1 1 3 1 . 1 . . 1 4 . 7 2 3 2 2 4 1 6 7 3 4 6 6 10 4 5 1 Storage 17 | 1 3 . . . . . 1 . 1 2 . . . . 1 . . . . . . . . . 3 2 1 . . . . . . 2 Processor 7 | . . . . . . 1 . . . . . . . . . . . . 1 . . 1 . 1 1 . . . . . . 1 1 . Hackware 95 | . . . . . . . 1 . . 1 1 5 . . . 1 1 7 3 6 . 7 2 6 2 11 2 7 . 10 5 11 1 5 Protection 82 | . 2 1 1 1 . 3 5 1 11 2 . 2 . 1 1 6 1 7 5 4 . 4 4 . . 4 1 4 3 . 3 3 . 2 Artifact . | . . . . . . . . . . . . . . . . . . . . . . . . . . . . . . . . . . . Weapon 219 | 2 2 . 1 1 . 4 15 3 11 13 6 8 . 4 4 11 1 12 5 2 1 12 5 15 15 5 4 9 1 . 17 17 2 11 Energy Gun 26 | . 1 . 1 1 . 1 2 1 . . . . . . . . . . 1 . . 1 . 8 5 . . . . . 1 1 1 1 Energy Cannon 42 | . . . . . . . 1 1 4 3 . . . . . 1 . 4 1 . 1 1 1 . 3 3 1 2 . . 5 2 1 7 Ballistic Gun 65 | 2 1 . . . . 1 9 . 5 4 3 4 . . 2 3 . 7 1 . . 4 . 2 2 2 1 . . . 5 7 . . Ballistic Cannon 5 | . . . . . . . . . . . . . . . 1 1 . . . . . . 1 . 2 . . . . . . . . . Launcher 22 | . . . . . . 1 1 1 2 . 1 . . 2 . 2 . . . 1 . 1 . 3 1 . 1 . . . 3 . . 2 Special Weapon 42 | . . . . . . . . . . 3 2 4 . 2 . 2 . 1 2 1 . 3 3 2 2 . 1 4 1 . 3 5 . 1 Impact Weapon 2 | . . . . . . . . . . . . . . . . . . . . . . . . . . . . . . . . 2 . . Slashing Weapon 15 | . . . . . . 1 2 . . 3 . . . . 1 2 1 . . . . 2 . . . . . 3 . . . . . . Piercing Weapon . | . . . . . . . . . . . . . . . . . . . . . . . . . . . . . . . . . . . Special Melee Weapon . | . . . . . . . . . . . . . . . . . . . . . . . . . . . . . . . . . . . Unidentified Prototypes 18 | . . . . . . . 1 . . 1 . . . . 1 . . . 4 . . . . . 2 . 2 . 2 . 2 1 . 2 Parts Lost 148 | . 6 1 1 5 . 8 6 . 8 . 1 5 . . . 10 . 9 . . . . 6 2 5 2 3 12 . 1 12 9 . 36 Power 16 | . 1 . . . . . 1 . 1 . . 1 . . . . . 1 . . . . . . . . . 5 . . 2 1 . 3 Propulsion 24 | . 2 . . 1 . 2 1 . 2 . . . . . . 2 . 2 . . . . 1 . 1 . 1 . . . 1 2 . 6 Utility 67 | . 1 1 . 3 . 2 3 . 3 . . 3 . . . 4 . 3 . . . . 2 2 2 2 2 4 . 1 6 3 . 20 Weapon 41 | . 2 . 1 1 . 4 1 . 2 . 1 1 . . . 4 . 3 . . . . 3 . 2 . . 3 . . 3 3 . 7 Highest Loss Streak 36 | . 3 1 1 2 . 6 3 . 2 . 1 3 . . . 7 . 4 . . . . 2 1 2 2 2 4 . 1 5 6 . 36 Average Slot Usage (%) 92 | . 96 98 87 85 100 82 87 83 92 93 85 88 92 91 93 94 94 88 84 86 88 90 93 93 95 95 92 92 99 93 94 94 96 92 Engine 2 | . 11 13 11 11 11 2 7 7 6 7 7 6 7 1 . . . 1 1 . . . . . . . . . . . . . . . Reactor 3 | . . . . . . . . . . . . . . . . . . 1 3 5 5 5 5 5 4 4 4 3 4 4 7 7 8 7 Leg 6 | . . . . . . . . . . . . . . . . 3 . 1 . . . . . 13 13 13 15 17 17 16 15 15 16 15 Wheel 7 | . 27 28 22 21 22 16 17 15 14 15 8 7 7 7 13 6 15 10 11 11 11 11 8 . . . . . . . . . . . Device 8 | . . . 6 5 22 11 8 7 10 7 7 6 7 7 6 7 6 3 9 9 5 7 9 10 15 10 8 8 11 6 12 11 12 10 Storage 17 | . 14 14 11 11 11 11 11 15 15 23 23 23 23 23 20 20 20 20 17 17 17 17 15 15 18 18 17 17 17 17 16 16 16 15 Processor 1 | . . . . . . . . . . . . . . . . . . . . . . . . 1 4 4 4 4 4 4 4 6 4 4 Hackware 16 | . . . . . . . 1 . . 4 7 20 23 23 20 13 19 19 11 15 17 18 26 25 23 24 21 22 26 26 23 21 24 23 Protection 9 | . 13 14 15 14 11 15 22 22 27 19 15 7 7 7 6 8 6 6 8 7 11 9 9 4 . 2 5 3 4 3 2 4 4 3 Energy Gun 1 | . 2 14 11 11 11 . 2 . . . . . . . . . . . . . . . . 8 1 . . . . . . . . . Energy Cannon 3 | . . . . . . . . 6 6 5 . . . . . . 6 4 5 5 5 4 2 . 2 3 4 7 8 8 6 3 3 3 Ballistic Gun 5 | . 25 14 11 11 11 4 10 7 7 1 11 9 7 7 12 11 4 3 4 5 5 4 4 1 4 3 3 . . . 1 3 4 3 Special Weapon 3 | . . . . . . . . . . 2 1 4 7 6 6 2 6 6 5 4 5 4 5 4 4 4 4 3 4 4 3 4 4 3 Naked Turns . | . . . . . . . . . . . . . . . . . . . . . . . . . . . . . . . . . . . Heaviest Build 185 | 11 42 45 49 49 47 52 105 120 122 143 141 139 113 122 124 132 132 145 155 154 153 151 145 142 149 158 166 162 153 148 178 178 184 185 Greatest Support 116 | 20 20 20 20 22 22 26 32 26 26 24 28 28 28 28 40 50 40 40 40 40 40 40 40 75 78 78 111 114 108 108 116 116 114 116 Greatest Overweight (x) 38 | . 4 2 2 4 2 5 4 4 6 6 5 4 4 4 3 10 3 38 3 3 3 3 12 6 2 3 2 1 1 1 1 2 1 1 Average Overweight (x) 2 | . . 1 2 2 2 2 1 4 4 5 4 3 4 4 2 3 3 3 3 3 3 3 6 1 1 1 1 1 1 1 1 1 1 . Largest Inventory Capacity 28 | 6 12 12 12 12 12 12 20 20 26 28 28 28 28 28 28 28 28 28 28 28 28 28 28 28 28 28 28 28 28 28 28 28 28 28 Average Capacity 26 | 5 9 12 12 12 12 12 14 20 20 27 28 28 28 28 28 28 28 28 28 28 28 28 28 28 28 28 28 28 28 28 28 28 28 27 Most Carried 28 | 2 9 11 12 12 12 12 20 20 26 28 28 28 24 25 28 28 28 28 28 28 28 28 28 28 28 28 28 28 28 28 28 28 28 28 Average Carried 24 | . 6 9 10 11 12 9 12 17 19 26 27 24 24 24 25 26 27 26 27 27 27 26 27 27 27 27 27 27 27 27 27 25 27 26 Final Capacity 28 | 6 12 12 12 12 12 12 20 20 26 28 28 28 28 28 28 28 28 28 28 28 28 28 28 28 28 28 28 28 28 28 28 28 28 4 Final Carried 28 | 2 9 10 11 12 12 9 20 20 26 28 28 24 24 24 28 28 28 28 28 28 28 28 28 28 28 28 28 28 27 28 27 28 28 4 Class Distribution -------------------- 45% | Botlord-Mutant 33% | Bothacker-Mutant 6% | Scavenger-Mutant 5% | Botlord-Skirmisher 4% | Mutant Dominant Class ---------------- Mutant | -10/Materials Mutant | -10/Mines Mutant | -9/Materials Mutant | -9/Mines Mutant | -9/Exiles Scavenger-Mutant | -8/Mines Scavenger-Assassin | -8/Materials Hauler-Mutant | -7/Factory Scavenger-Mutant | -7/Garrison Bothacker-Mutant | -7/Factory Bothacker-Mutant | -7/Lower Caves Bothacker-Mutant | -7/Lower Caves Bothacker-Mutant | -7/Data Miner Bothacker-Mutant | -6/Proximity Caves Bothacker-Mutant | -6/Factory Bothacker-Mutant | -6/Garrison Bothacker-Mutant | -6/Factory Bothacker-Mutant | -6/Garrison Bothacker-Mutant | -5/Factory Bothacker-Mutant | -5/Garrison Botlord-Mutant | -5/Factory Botlord-Mutant | -5/Garrison Botlord-Mutant | -4/Factory Botlord-Mutant | -4/Garrison Botlord-Mutant | -3/Research Botlord-Mutant | -3/Garrison Botlord-Mutant | -2/Research Botlord-Mutant | -2/Garrison Botlord-Mutant | -2/Research Botlord-Mutant | -2/Garrison Botlord-Mutant | -1/Access Botlord-Mutant | -1/Garrison Botlord-Mutant | -1/Access Botlord-Mutant | -1/Command Resources | -11 -10 -10 -9 -9 -9 -8 -8 -7 -7 -7 -7 -7 -7 -6 -6 -6 -6 -6 -5 -5 -5 -5 -4 -4 -3 -3 -2 -2 -2 -2 -1 -1 -1 -1 ----------- Run | Scr Mat Min Mat Min Exi Min Mat Fac Gar Fac Low Low Dat Pro Fac Gar Fac Gar Fac Gar Fac Gar Fac Gar Res Gar Res Gar Res Gar Acc Gar Acc Com Matter Collected 14822 | 228 447 88 120 169 13 218 389 46 833 247 245 398 . 152 390 841 . 915 191 344 47 584 702 729 364 810 853 605 . 633 1047 948 278 948 Remotely 171 | . . . 84 87 . . . . . . . . . . . . . . . . . . . . . . . . . . . . . . Salvage Created 19098 | . 527 255 390 577 . 268 678 117 1469 270 189 353 . 147 88 1059 . 1409 379 362 53 1089 1122 530 325 779 866 1398 . 180 1472 1083 409 1255 Parts 827 | . 39 16 27 22 . 13 41 7 64 13 15 17 . 12 4 35 . 37 18 11 1 43 39 38 18 28 32 32 . 11 89 45 6 54 Haulers Intercepted 9 | . . . 1 . . . 2 . . . . . . . 1 . . . 1 . . . . . . . 2 . . . 1 . 1 . Recyclers Shooed 14 | . . . . 1 . 1 . . . 1 . . . . . . . . . . . . 7 . . . 1 . 1 . 2 . . . Parts Field Recycled . | . . . . . . . . . . . . . . . . . . . . . . . . . . . . . . . . . . . Retrieved Matter . | . . . . . . . . . . . . . . . . . . . . . . . . . . . . . . . . . . . Parts Self-Destructed 52 | . . . . . . . . . . . 14 20 . 18 . . . . . . . . . . . . . . . . . . . . Prevented . | . . . . . . . . . . . . . . . . . . . . . . . . . . . . . . . . . . . Kills | -11 -10 -10 -9 -9 -9 -8 -8 -7 -7 -7 -7 -7 -7 -6 -6 -6 -6 -6 -5 -5 -5 -5 -4 -4 -3 -3 -2 -2 -2 -2 -1 -1 -1 -1 ------- Run | Scr Mat Min Mat Min Exi Min Mat Fac Gar Fac Low Low Dat Pro Fac Gar Fac Gar Fac Gar Fac Gar Fac Gar Res Gar Res Gar Res Gar Acc Gar Acc Com Combat Hostiles Destroyed 314 | . 16 4 9 9 . 6 13 4 30 5 7 6 . 7 . 18 . 23 4 9 1 15 12 24 5 10 4 14 . 3 14 9 3 30 Melee 10 | . . . . . . . 2 . . 2 . . . . . 4 . 2 . . . . . . . . . . . . . . . . Guns 119 | . 16 4 9 9 . 3 8 1 12 2 4 6 . 2 . 10 . 6 . . . 3 3 5 4 5 1 . . . 2 3 . 1 Cannons 73 | . . . . . . . . 1 9 1 . . . . . 1 . 13 4 4 1 7 8 . . 3 3 4 . 3 7 1 2 1 AOE 85 | . . . . . . 3 3 2 9 . 3 . . 5 . 3 . . . 3 . 5 1 17 . 1 . . . . 3 . . 27 Classes Destroyed 18 | . 7 . 3 2 . 1 1 1 1 . . . . . . . . 2 . . . . . . . . . . . . . . . . Worker 17 | . 2 2 1 2 . 1 1 1 . 1 . . . . . . . . . . . . . . . . 2 . . . 4 . . . Builder 9 | . 1 . . 1 . . . . . 1 . . . . . . . . . . . . 2 . . . 3 . . . 1 . . . Tunneler 3 | . . . . . . 1 . . . . . . . . . . . . 1 . . . 1 . . . . . . . . . . . Hauler 9 | . . . 1 . . . 2 . . . . . . . 1 . . . 1 . . . . . . . 2 . . . 1 . 1 . Recycler 14 | . . . . 3 . 1 2 . . 1 . . . . . . . . . . . . 3 . . . 2 . . . 2 . . . Mechanic 1 | . 1 . . . . . . . . . . . . . . . . . . . . . . . . . . . . . . . . . Operator 2 | . 2 . . . . . . . . . . . . . . . . . . . . . . . . . . . . . . . . . Watcher 10 | . 1 . . . . . 2 . 1 . . . . . . . . . . . . 2 . . . . . . . . 2 . 1 1 Swarmer 99 | . 9 . 3 4 . 3 8 . 7 4 5 1 . 6 . 3 . 7 . . . 4 . 19 1 . . . . 1 . 1 . 13 Grunt 104 | . 7 4 4 3 . 2 . 3 8 . . . . . . 14 . 11 . 8 . 6 1 1 . 9 . 9 . 1 3 2 2 6 Brawler 4 | . . . . 1 . . . . . . . 1 . . . . . . . . . . . . . . 1 1 . . . . . . Duelist 11 | . . . 1 1 . 1 . . 1 . . 2 . 1 . 1 . 1 . . . 2 . . . . . . . . . . . . Sentry 31 | . . . 1 . . . 4 . 13 . . 1 . . . 1 . 2 1 . . 3 2 . 1 . . . . . . 2 . . Demolisher 1 | . . . . . . . . . . . . . . . . . . 1 . . . . . . . . . . . . . . . . Specialist 4 | . . . . . . . . . 1 . . . . . . . . . . . . . . 2 . . . 1 . . . . . . Hunter 25 | . . . . . . . 1 . . . . . . . . . . . 1 1 . . 4 2 . 1 1 2 . . 1 4 1 6 Programmer 37 | . . . . . . . . 1 . 1 2 1 . . . . . . 2 . 1 1 6 . 3 . 2 . . 1 10 1 . 5 Behemoth 4 | . . . . . . . . . . . . . . . . . . 1 . . . . . . . 1 . 1 . . . 1 . . Best Kill Streak 29 | . 7 4 4 7 . 3 7 4 7 2 4 3 . 4 1 3 . 3 3 2 1 4 7 11 3 3 4 4 . 1 5 2 1 29 Combat Bots Only 29 | . 5 2 4 5 . 3 4 3 7 2 4 3 . 4 . 3 . 3 3 2 1 4 3 11 3 3 3 4 . 1 3 2 1 29 Max Kills in Single Turn 8 | . 2 1 1 1 . 1 4 2 4 1 3 2 . 3 1 2 . 1 1 1 1 2 1 3 2 1 1 1 . 1 2 1 1 8 Gunslinging 1 | . 1 . . . . . 1 . . . . 1 . . . . . . . . . . . . . . . . . . . . . . Exploded 8 | . . . . . . 1 3 2 4 . 3 . . 3 . 2 . . . 1 . 2 1 3 . 1 . . . . 2 . . 8 Melee 1 | . . . . . . . 1 . . 1 . . . . . 1 . 1 . . . . . . . . . . . . . . . . Uniques/NPCs Destroyed . | . . . . . . . . . . . . . . . . . . . . . . . . . . . . . . . . . . . Combat | -11 -10 -10 -9 -9 -9 -8 -8 -7 -7 -7 -7 -7 -7 -6 -6 -6 -6 -6 -5 -5 -5 -5 -4 -4 -3 -3 -2 -2 -2 -2 -1 -1 -1 -1 -------- Run | Scr Mat Min Mat Min Exi Min Mat Fac Gar Fac Low Low Dat Pro Fac Gar Fac Gar Fac Gar Fac Gar Fac Gar Res Gar Res Gar Res Gar Acc Gar Acc Com Damage Taken 28966 | . 637 136 306 313 . 481 867 373 2083 326 479 1080 . 58 . 2164 . 1615 119 379 . 709 1591 1064 504 627 1150 1180 . 590 2568 1533 282 5752 Core 3462 | . 124 . 59 . . 45 67 20 131 18 29 198 . 27 . 173 . 157 13 43 . 54 102 130 112 69 79 196 . 13 280 151 46 1126 Absorbed by Shields 1713 | . . . . . . . . . 55 . . . . . . . . 45 92 11 . 348 . 246 . 227 . 346 . 291 . 29 . 23 Core Remaining (%) 74 | 100 . 50 . . . 74 87 . . . . . . 39 . . . 61 . . . 89 . 79 . 86 . . . 80 . . . . Volleys Fired 1625 | 1 67 9 27 32 . 29 43 10 106 28 14 31 . 9 9 73 8 155 37 66 7 83 96 68 26 55 77 80 9 73 119 102 38 38 Largest 2 | 2 2 2 2 2 . 2 2 2 2 2 2 2 . 1 2 2 1 2 1 1 1 2 2 2 2 2 2 1 1 1 2 2 1 1 Hottest 240 | 40 65 65 65 65 . 68 103 103 108 108 108 60 . 36 60 78 80 90 90 90 80 108 131 130 113 148 155 120 120 120 155 150 240 120 Shots Fired 2121 | 2 126 18 52 63 . 33 73 16 179 33 24 46 . 9 10 119 8 170 37 66 7 103 133 88 34 76 85 80 9 76 162 108 38 38 Gun 961 | 2 126 18 52 63 . 28 64 6 87 9 20 30 . 3 2 100 . 55 . . . 33 41 65 25 24 11 . . . 53 35 8 1 Cannon 818 | . . . . . . . 8 6 89 16 1 . . . 8 14 1 100 28 49 6 57 77 . 3 37 58 62 7 54 77 41 13 6 Launcher 54 | . . . . . . 5 1 4 3 . 2 . . 3 . 3 . . . 5 . 3 . 17 . . . . . . 3 . . 5 Special 288 | . . . . . . . . . . 8 1 16 . 3 . 2 7 15 9 12 1 10 15 6 6 15 16 18 2 22 29 32 17 26 Kinetic 838 | 2 121 9 27 31 . 24 61 6 87 9 20 30 . 3 10 114 . 55 . . . 33 74 14 14 24 11 . . . 50 8 . 1 Thermal 674 | . . . . . . . 11 6 89 16 1 . . . . . 1 100 28 49 6 57 44 25 9 34 58 12 4 42 68 . 8 6 Explosive 51 | . . . . . . 5 1 4 3 . 2 . . 3 . 3 . . . 5 . 3 . 17 . . . . . . 2 . . 3 Electromagnetic 270 | . 5 9 25 32 . 4 . . . . . . . . . . . . . . . . . 26 5 3 . 50 3 12 13 68 13 2 Robot Hit Streak 32 | . 10 11 15 9 . 10 5 4 32 23 10 15 . 13 1 8 5 17 11 22 2 15 15 12 15 10 18 14 2 14 12 28 30 12 Robot Miss Streak 9 | . 5 1 3 3 . 2 5 2 5 3 1 1 . 2 2 4 1 6 2 3 1 4 3 9 1 2 3 4 2 2 3 5 7 1 Penetration Max 1 | . . . . . . . . . 1 . 1 . . . . 1 . . . . . . 1 . 1 . . . . . 1 . . 1 Secondary Targets 11 | . 2 . 1 2 . . 1 . . . . 1 . . . 3 . . . . . . . 1 . . . . . . . . . . Max Gunslinging Chain 1 | . 1 . 1 1 . . 1 . . . . 1 . . . 1 . . . . . . . 1 . . . . . . . . . . Shots Hit Robots 1376 | . 76 15 41 39 . 26 49 10 115 27 17 40 . 6 1 90 6 117 24 36 5 73 84 39 27 48 53 58 2 31 95 77 19 30 Core Hits 707 | . 34 11 22 28 . 13 30 13 80 9 9 10 . 11 1 43 . 57 8 16 2 54 36 33 11 16 17 17 . 3 33 19 3 68 Critical Hits 17 | . . . . . . . . . . 1 . . . . 1 1 . 2 . 1 . 1 7 1 1 . . . . . . 1 . . Critical Kills 4 | . . . . . . . . . . . . . . . 1 . . 1 . . . 1 1 . . . . . . . . . . . Critical Parts Destroyed 13 | . . . . . . . . . . 1 . . . . . 1 . 1 . 1 . . 6 1 1 . . . . . . 1 . . Melee Attacks 105 | . . . . . . 2 20 . . 20 . . . . 1 29 2 13 . . . 12 . . . . . 4 . . . 2 . . Thermal 4 | . . . . . . . . . . . . . . . . . . . . . . . . . . . . 4 . . . . . . Impact 2 | . . . . . . . . . . . . . . . . . . . . . . . . . . . . . . . . 2 . . Slashing 99 | . . . . . . 2 20 . . 20 . . . . 1 29 2 13 . . . 12 . . . . . . . . . . . . Piercing . | . . . . . . . . . . . . . . . . . . . . . . . . . . . . . . . . . . . Sneak Attacks 8 | . . . . . . 2 2 . . 2 . . . . . 1 . 1 . . . . . . . . . . . . . . . . Combat Hostiles 3 | . . . . . . . . . . 1 . . . . . 1 . 1 . . . . . . . . . . . . . . . . Follow-up Attacks . | . . . . . . . . . . . . . . . . . . . . . . . . . . . . . . . . . . . Damage Inflicted 44955 | . 1102 217 412 566 . 795 1494 735 3472 669 631 610 . 380 24 3179 . 3110 576 1317 119 2645 2880 2430 693 1263 1860 1738 42 655 3658 1388 509 5786 Guns 12808 | . 1102 217 412 498 . 334 695 43 1205 130 376 610 . 72 24 1322 . 691 . . . 476 903 789 643 309 216 . . . 1000 680 . 61 Cannons 17086 | . . . . . . . . 108 1556 287 32 . . . . 301 . 2064 576 865 119 966 1636 . 50 954 1644 1738 42 655 2107 708 509 169 Explosions 11526 | . . . . 68 . 271 213 584 711 . 223 . . 308 . 326 . . . 452 . 297 341 1641 . . . . . . 551 . . 5540 Melee 3519 | . . . . . . 190 586 . . 252 . . . . . 1230 . 355 . . . 906 . . . . . . . . . . . . Ramming 16 | . . . . . . . . . . . . . . . . . . . . . . . . . . . . . . . . . . 16 Kinetic 11564 | . 1007 73 133 131 . 286 659 43 1205 130 376 610 . 72 24 1623 . 691 . . . 476 1741 165 439 309 216 . . . 950 144 . 61 Thermal 14515 | . . . . 68 . . 36 108 1556 287 32 . . . . . . 2064 576 865 119 966 798 315 144 828 1644 392 . 522 2197 . . 998 Explosive 9637 | . . . . . . 271 213 584 711 . 223 . . 308 . 326 . . . 452 . 297 341 1641 . . . . . . 164 . . 4106 Electromagnetic 5704 | . 95 144 279 367 . 48 . . . . . . . . . . . . . . . . . 309 110 126 . 1346 42 133 347 1244 509 605 Impact . | . . . . . . . . . . . . . . . . . . . . . . . . . . . . . . . . . . . Slashing 3519 | . . . . . . 190 586 . . 252 . . . . . 1230 . 355 . . . 906 . . . . . . . . . . . . Piercing . | . . . . . . . . . . . . . . . . . . . . . . . . . . . . . . . . . . . Highest Corruption 36 | . . . 3 3 3 3 . 1 1 1 3 4 4 4 . . . 13 1 1 1 2 15 17 5 5 2 4 4 5 14 14 14 36 Average Corruption 5 | . . . 2 3 3 3 . 1 1 1 2 3 4 4 . . . 11 1 1 1 1 10 15 4 5 1 3 4 4 8 14 14 14 Corruption Purged . | . . . . . . . . . . . . . . . . . . . . . . . . . . . . . . . . . . . Effects 796 | . . . 4 12 7 8 . . 12 2 11 20 2 9 . . . 68 3 8 4 34 66 107 6 68 2 44 16 59 40 122 33 29 Message Errors 180 | . . . 2 2 3 3 . . 7 . 4 5 1 1 . . . 10 1 4 3 15 12 19 . 21 . 11 4 16 3 21 6 6 Matter Fused 149 | . . . . 4 1 1 . . . . 4 6 . 4 . . . 15 . . . . 8 21 1 15 . 11 3 14 9 21 6 5 Heat Flow Errors 85 | . . . . . 1 1 . . . . 2 3 1 . . . . 7 . . . 8 5 4 1 10 . 7 5 8 7 10 2 3 Energy Discharges 78 | . . . 1 2 . . . . 1 . 1 1 . 3 . . . 7 . 1 . 2 2 13 2 8 . 8 1 2 4 16 2 1 Parts Rejected 8 | . . . . . . . . . . . . . . . . . . 1 . . . . 2 . . 1 . . . . 1 3 . . Data Loss (minor) 89 | . . . . 1 2 1 . . 3 1 . 1 . 1 . . . 6 1 1 1 5 8 10 . 5 1 2 3 7 5 12 7 5 Data Loss (major) 18 | . . . . . . . . . . . . . . . . . . 2 . . . . 2 6 . 2 . . . 3 1 2 . . Misfires 15 | . . . . . . . . . . . . . . . . . . 1 . . . . 1 1 . 2 . . . 4 1 5 . . Alerts 5 | . . . . . . . . . . . . . . . . . . 2 . . . . 1 2 . . . . . . . . . . Misdirections 49 | . . . . . . . . . . . . . . . . . . 6 . . . . 4 15 . . . . . . 3 14 4 3 Targeting Errors 104 | . . . 1 2 . 2 . . 1 1 . 4 . . . . . 11 1 2 . 2 16 10 2 4 1 5 . 4 6 17 6 6 Weapon Failures 16 | . . . . 1 . . . . . . . . . . . . . . . . . 2 5 6 . . . . . 1 . 1 . . Overload Shots 8 | . . . . . . . . . . . . . . . . . . . . . . . . . . . . . . . . . 8 . Overflow Damage 1362 | . . . . 19 . 17 81 19 31 . . . . . . 144 . 113 9 40 . 95 36 82 . 18 140 . 12 49 69 . 3 385 Projectiles 455 | . . . . . . . . 19 . . . . . . . . . 55 9 28 . 24 36 . . 18 140 . 12 49 62 . 3 . Explosions 553 | . . . . 19 . 17 . . 31 . . . . . . . . . . 12 . . . 82 . . . . . . 7 . . 385 Melee 354 | . . . . . . . 81 . . . . . . . . 144 . 58 . . . 71 . . . . . . . . . . . . Knockbacks 11 | . . . . . . . . . . . . . . . . 4 . . . . . . 7 . . . . . . . . . . . Impact . | . . . . . . . . . . . . . . . . . . . . . . . . . . . . . . . . . . . Kinetic 10 | . . . . . . . . . . . . . . . . 4 . . . . . . 6 . . . . . . . . . . . Secondary 1 | . . . . . . . . . . . . . . . . . . . . . . . 1 . . . . . . . . . . . Self-Inflicted Damage 329 | . . . . 36 . 19 . 8 . . . . . . . . . . . . . . 40 36 . . . . . . 66 . . 124 Shots 12 | . . . . 1 . 1 . 2 . . . . . . . . . . . . . . 1 2 . . . . . . 1 . . 4 Rammed 4 | . . . . . . . . . . . . . . . . . . . . . . . . . . . . . . . . . . 4 Targets Rammed 4 | . . . . . . . . . . . . . . . . . . . . . . . . . . . . . . . . . . 4 Kicked . | . . . . . . . . . . . . . . . . . . . . . . . . . . . . . . . . . . . Crushed . | . . . . . . . . . . . . . . . . . . . . . . . . . . . . . . . . . . . Highest Temperature 269 | . 9 94 66 69 84 223 200 99 263 . 213 145 189 . . 48 . 258 170 195 120 264 179 196 123 185 28 202 223 269 220 192 198 129 Average Temperature 48 | . 3 40 16 20 51 76 53 40 50 . 99 42 111 . . 23 . 45 43 48 53 68 36 74 32 66 8 73 87 96 34 59 87 28 Received Heat Transfer 4296 | . 207 75 132 30 . 135 189 126 671 . 18 162 . . . 828 . 219 8 108 . 105 117 24 54 50 99 186 . 88 36 71 18 540 Effects 4 | . . . . . . . . . . . . . . . . . . . . . . . . . . . . . 3 1 . . . . Interference 4 | . . . . . . . . . . . . . . . . . . . . . . . . . . . . . 3 1 . . . . Siege Activations . | . . . . . . . . . . . . . . . . . . . . . . . . . . . . . . . . . . . Robots Corrupted 23 | . . . . . . . . . . . . . . . . . . . . . . . . 2 1 1 . 8 . . 1 7 2 1 Combat Hostiles 20 | . . . . . . . . . . . . . . . . . . . . . . . . 2 1 1 . 8 . . 1 5 1 1 Parts Fried 44 | . . . . 1 . 1 . . . . . . . . . . . . . . . . . 3 2 1 . 18 . . 5 9 4 . Impact Corruptions . | . . . . . . . . . . . . . . . . . . . . . . . . . . . . . . . . . . . Robots Melted 6 | . . . . . . . . . . . . . . . . . . 2 . 2 . . . . . . . 1 . . 1 . . . Combat Hostiles 6 | . . . . . . . . . . . . . . . . . . 2 . 2 . . . . . . . 1 . . 1 . . . Parts Melted 46 | . . . . . . . 1 . 6 1 . . . . . . . 7 3 5 1 3 2 . . 1 2 6 . 2 3 . 2 1 Heat Transferred 17857 | . . . . 100 . . 74 200 2947 550 50 . . . . . . 3000 826 1300 200 1800 942 481 185 777 1351 314 . 444 1506 . . 810 Parts Sabotaged . | . . . . . . . . . . . . . . . . . . . . . . . . . . . . . . . . . . . Parts Stolen . | . . . . . . . . . . . . . . . . . . . . . . . . . . . . . . . . . . . Parts Stripped . | . . . . . . . . . . . . . . . . . . . . . . . . . . . . . . . . . . . Power Chain Reactions 5 | . . . . 1 . . . . . . . . . . . . . . . . . . . . . . . . . . 2 . . 2 Missiles Intercepted . | . . . . . . . . . . . . . . . . . . . . . . . . . . . . . . . . . . . Alert | -11 -10 -10 -9 -9 -9 -8 -8 -7 -7 -7 -7 -7 -7 -6 -6 -6 -6 -6 -5 -5 -5 -5 -4 -4 -3 -3 -2 -2 -2 -2 -1 -1 -1 -1 ------- Run | Scr Mat Min Mat Min Exi Min Mat Fac Gar Fac Low Low Dat Pro Fac Gar Fac Gar Fac Gar Fac Gar Fac Gar Res Gar Res Gar Res Gar Acc Gar Acc Com Peak Influence 1467 | . 190 116 167 264 . 175 417 234 1236 651 . . . . 204 773 405 859 598 1144 744 1467 950 928 559 959 618 676 404 571 342 759 455 555 Initial 770 | . . 41 15 64 . . 68 71 163 648 . . . . 148 142 405 172 450 334 600 520 770 153 522 219 539 456 380 177 342 97 455 13 Average 552 | . 49 34 84 150 . 116 252 146 932 362 . . . . 165 464 268 567 499 855 621 1197 427 668 391 626 496 500 311 382 76 511 214 39 Maximum Alert Level 4 | . . . . 1 . . 2 1 4 2 . . . . 1 3 2 3 2 4 3 4 3 3 2 3 2 2 2 2 1 3 2 2 Low Security (%) 17 | 100 100 100 100 70 . 100 26 58 4 21 . . . . 95 14 . 4 . . . . 39 2 . . . . . 8 95 8 58 93 Level 1 20 | . . . . 30 . . 61 41 1 37 . . . . 4 27 95 14 6 8 . . 15 18 62 34 23 14 95 33 4 21 9 1 Level 2 29 | . . . . . . . 11 . 4 41 . . . . . 28 4 60 93 18 59 4 11 29 37 18 76 85 4 57 . 38 32 4 Level 3 22 | . . . . . . . . . 66 . . . . . . 28 . 20 . 54 40 18 33 49 . 47 . . . . . 31 . . Level 4 9 | . . . . . . . . . 23 . . . . . . . . . . 18 . 76 . . . . . . . . . . . . Level 5 . | . . . . . . . . . . . . . . . . . . . . . . . . . . . . . . . . . . . High Security . | . . . . . . . . . . . . . . . . . . . . . . . . . . . . . . . . . . . Max Security . | . . . . . . . . . . . . . . . . . . . . . . . . . . . . . . . . . . . Squads Dispatched 45 | . 3 . . . . . 1 1 . 1 . 1 . . 1 . 2 . 7 . . . 6 . 3 . 7 . 2 . 9 . 1 . Investigation 6 | . . . . . . . . . . . . . . . 1 . . . 1 . . . 1 . 1 . 1 . . . 1 . . . Extermination 14 | . . . . . . . . 1 . 1 . . . . . . 1 . 1 . . . 2 . 2 . 1 . 1 . 4 . . . Reinforcement 17 | . 3 . . . . . 1 . . . . . . . . . 1 . 1 . . . 3 . . . 2 . 1 . 4 . 1 . Assault 4 | . . . . . . . . . . . . 1 . . . . . . 1 . . . . . . . 2 . . . . . . . Garrison 4 | . . . . . . . . . . . . . . . . . . . 3 . . . . . . . 1 . . . . . . . Intercept . | . . . . . . . . . . . . . . . . . . . . . . . . . . . . . . . . . . . Construction Impeded 6 | . . . . . . . . . . . . . . . . . . . . . . . 2 . . . 1 . . . 3 . . . Haulers Reinforced 3 | . . . . . . . . . . . . . . . . . . . 1 . . . . . . . 1 . . . . . 1 . Alert ID Control Effect 72 | . . . . . . . . . . . . . . . . . . . . . . . . . . . . 5 . 7 33 9 11 7 Stealth | -11 -10 -10 -9 -9 -9 -8 -8 -7 -7 -7 -7 -7 -7 -6 -6 -6 -6 -6 -5 -5 -5 -5 -4 -4 -3 -3 -2 -2 -2 -2 -1 -1 -1 -1 --------- Run | Scr Mat Min Mat Min Exi Min Mat Fac Gar Fac Low Low Dat Pro Fac Gar Fac Gar Fac Gar Fac Gar Fac Gar Res Gar Res Gar Res Gar Acc Gar Acc Com Distress Signals 23 | . 3 . . . . . 2 . 1 . . 1 . . . . . . . 2 . 1 2 . . . 3 . . . 5 . 1 2 Communications Jammed . | . . . . . . . . . . . . . . . . . . . . . . . . . . . . . . . . . . . Distress Signals . | . . . . . . . . . . . . . . . . . . . . . . . . . . . . . . . . . . . Times Spotted 760 | . 38 4 14 11 . 7 18 4 48 7 6 19 . 10 . 31 4 40 5 22 4 33 32 36 10 26 31 30 4 27 61 53 20 105 Peak Tracking Total 54 | . 5 2 4 5 . 3 7 3 12 2 5 10 . 4 . 8 4 3 2 4 2 5 9 7 4 5 6 8 2 5 8 17 7 54 Tactical Retreats 46 | . 2 . 1 3 . 1 . . 4 . . 1 . . . 6 . 8 . 3 . 1 . 7 . . 1 4 1 . . 1 . 2 Traps | -11 -10 -10 -9 -9 -9 -8 -8 -7 -7 -7 -7 -7 -7 -6 -6 -6 -6 -6 -5 -5 -5 -5 -4 -4 -3 -3 -2 -2 -2 -2 -1 -1 -1 -1 ------- Run | Scr Mat Min Mat Min Exi Min Mat Fac Gar Fac Low Low Dat Pro Fac Gar Fac Gar Fac Gar Fac Gar Fac Gar Res Gar Res Gar Res Gar Acc Gar Acc Com Traps Triggered 82 | . 2 . 2 . . . 2 2 14 . . . . . . 9 4 11 . 4 1 4 1 2 . 4 . 5 1 6 2 6 . . Indirectly 2 | . . . . . . . . . . . . . . . . . . . . . . . . . . . . . . . 2 . . . Trap Hack Attempts . | . . . . . . . . . . . . . . . . . . . . . . . . . . . . . . . . . . . Triggered . | . . . . . . . . . . . . . . . . . . . . . . . . . . . . . . . . . . . Disarmed . | . . . . . . . . . . . . . . . . . . . . . . . . . . . . . . . . . . . Reprogrammed . | . . . . . . . . . . . . . . . . . . . . . . . . . . . . . . . . . . . Reused . | . . . . . . . . . . . . . . . . . . . . . . . . . . . . . . . . . . . Traps Extracted . | . . . . . . . . . . . . . . . . . . . . . . . . . . . . . . . . . . . Installed 3 | . . 2 . . . . 1 . . . . . . . . . . . . . . . . . . . . . . . . . . . Triggered 3 | . . . . . . . . . . . 1 2 . . . . . . . . . . . . . . . . . . . . . . Power Sources Rigged 33 | . . . . . . . . . 4 . . . . . . 8 . 2 . 5 . 10 . 1 . 3 . . . . . . . . Exploded 33 | . . . . . . . . . 4 . . . . . . 8 . 2 . 5 . 10 . 1 . 3 . . . . . . . . Machines | -11 -10 -10 -9 -9 -9 -8 -8 -7 -7 -7 -7 -7 -7 -6 -6 -6 -6 -6 -5 -5 -5 -5 -4 -4 -3 -3 -2 -2 -2 -2 -1 -1 -1 -1 ---------- Run | Scr Mat Min Mat Min Exi Min Mat Fac Gar Fac Low Low Dat Pro Fac Gar Fac Gar Fac Gar Fac Gar Fac Gar Res Gar Res Gar Res Gar Acc Gar Acc Com Machines Disabled 71 | . . . . . . . . . 4 1 . 1 . . . 5 . 4 3 4 4 7 5 5 . 7 2 5 1 5 2 5 1 . Max in Single Turn 2 | . . . . . . . . . 1 1 . 1 . . . 1 . 1 1 1 . 1 2 1 . 1 1 1 1 1 1 1 . . Garrison Access 1 | . . . . . . . . . . 1 . . . . . . . . . . . . . . . . . . . . . . . . Garrison Relay 41 | . . . . . . . . . 4 . . . . . . 4 . 4 . 4 . 5 . 4 . 4 . 4 . 4 . 4 . . Machines Sabotaged . | . . . . . . . . . . . . . . . . . . . . . . . . . . . . . . . . . . . Garrisons Compromised . | . . . . . . . . . . . . . . . . . . . . . . . . . . . . . . . . . . . Overloaded Fab Kills . | . . . . . . . . . . . . . . . . . . . . . . . . . . . . . . . . . . . Fab Network Shutdowns . | . . . . . . . . . . . . . . . . . . . . . . . . . . . . . . . . . . . Hacking | -11 -10 -10 -9 -9 -9 -8 -8 -7 -7 -7 -7 -7 -7 -6 -6 -6 -6 -6 -5 -5 -5 -5 -4 -4 -3 -3 -2 -2 -2 -2 -1 -1 -1 -1 --------- Run | Scr Mat Min Mat Min Exi Min Mat Fac Gar Fac Low Low Dat Pro Fac Gar Fac Gar Fac Gar Fac Gar Fac Gar Res Gar Res Gar Res Gar Acc Gar Acc Com Machines Accessed 53 | . 1 . 3 . 2 . 8 1 . 7 2 . 4 . 3 . 3 . 3 . 3 . 2 . 4 . 2 . 2 . 2 . . 1 Terminals 32 | . 1 . 3 . . . 8 . . 5 . . . . 2 . 2 . 2 . 2 . 1 . 2 . 1 . 1 . 1 . . 1 Fabricators 1 | . . . . . . . . . . 1 . . . . . . . . . . . . . . . . . . . . . . . . Repair Stations 1 | . . . . . . . . . . . . . . . . . . . . . . . . . 1 . . . . . . . . . Recycling Units . | . . . . . . . . . . . . . . . . . . . . . . . . . . . . . . . . . . . Scanalyzers . | . . . . . . . . . . . . . . . . . . . . . . . . . . . . . . . . . . . Garrison Access 11 | . . . . . . . . 1 . 1 . . . . 1 . 1 . 1 . 1 . 1 . 1 . 1 . 1 . 1 . . . Total Hacks 125 | . 3 . 9 . 2 . 19 3 . 12 3 . 20 . 8 . 5 . 4 . 8 . 5 . 10 . 3 . 4 . 3 . . 4 Successful 75 | . 1 . 5 . 2 . 8 3 . 5 3 . 20 . 3 . 4 . 3 . 4 . 4 . 3 . 2 . 1 . 2 . . 2 Failed 50 | . 2 . 4 . . . 11 . . 7 . . . . 5 . 1 . 1 . 4 . 1 . 7 . 1 . 3 . 1 . . 2 Catastrophic 12 | . . . . . . . 1 . . 1 . . . . 2 . 1 . 1 . 1 . . . . . 1 . 2 . 1 . . 1 Database Lockouts . | . . . . . . . . . . . . . . . . . . . . . . . . . . . . . . . . . . . Manual 64 | . 3 . 4 . 1 . 16 2 . 5 . . . . 2 . 2 . 3 . 5 . 5 . 5 . 3 . 3 . 1 . . 4 Terminals 73 | . 3 . 9 . . . 19 . . 10 . . . . 6 . 4 . 2 . 6 . 3 . 4 . 1 . 1 . 1 . . 4 Fabricators 1 | . . . . . . . . . . 1 . . . . . . . . . . . . . . . . . . . . . . . . Repair Stations 4 | . . . . . . . . . . . . . . . . . . . . . . . . . 4 . . . . . . . . . Recycling Units . | . . . . . . . . . . . . . . . . . . . . . . . . . . . . . . . . . . . Scanalyzers . | . . . . . . . . . . . . . . . . . . . . . . . . . . . . . . . . . . . Garrison Access 22 | . . . . . . . . 3 . 1 . . . . 2 . 1 . 2 . 2 . 2 . 2 . 2 . 3 . 2 . . . Terminal Hacks 38 | . 1 . 4 . 2 . 3 . . 2 3 . 20 . . . 1 . . . 1 . 1 . . . . . . . . . . . Record 13 | . . . . . 1 . . . . . 2 . 10 . . . . . . . . . . . . . . . . . . . . . Part Schematic 5 | . . . . . . . . . . . . . 5 . . . . . . . . . . . . . . . . . . . . . Robot Schematic 2 | . . . . . . . . . . . . . 2 . . . . . . . . . . . . . . . . . . . . . Prototype ID Bank 3 | . . . . . . . . . . . . . 3 . . . . . . . . . . . . . . . . . . . . . Open Door 1 | . . . . . . . . . . . 1 . . . . . . . . . . . . . . . . . . . . . . . Level Access Points 1 | . . . 1 . . . . . . . . . . . . . . . . . . . . . . . . . . . . . . . Branch Access Points 2 | . . . 1 . . . . . . 1 . . . . . . . . . . . . . . . . . . . . . . . . Terminal Index 1 | . . . . . . . 1 . . . . . . . . . . . . . . . . . . . . . . . . . . . Garrison Index 1 | . . . . . . . 1 . . . . . . . . . . . . . . . . . . . . . . . . . . . Alert Level 1 | . . . 1 . . . . . . . . . . . . . . . . . . . . . . . . . . . . . . . Unreport Threat 6 | . 1 . 1 . . . . . . 1 . . . . . . 1 . . . 1 . 1 . . . . . . . . . . . Zone Layout 1 | . . . . . . . 1 . . . . . . . . . . . . . . . . . . . . . . . . . . . EX-Prototype ID Bank 1 | . . . . . 1 . . . . . . . . . . . . . . . . . . . . . . . . . . . . . Fabricator Hacks . | . . . . . . . . . . . . . . . . . . . . . . . . . . . . . . . . . . . Repair Station Hacks 1 | . . . . . . . . . . . . . . . . . . . . . . . . . 1 . . . . . . . . . Scan Component 1 | . . . . . . . . . . . . . . . . . . . . . . . . . 1 . . . . . . . . . Recycling Unit Hacks . | . . . . . . . . . . . . . . . . . . . . . . . . . . . . . . . . . . . Scanalyzer . | . . . . . . . . . . . . . . . . . . . . . . . . . . . . . . . . . . . Garrison Access Hacks 11 | . . . . . . . . 1 . 1 . . . . 1 . 1 . 1 . 1 . 1 . 1 . 1 . 1 . 1 . . . Unlock Access 10 | . . . . . . . . 1 . . . . . . 1 . 1 . 1 . 1 . 1 . 1 . 1 . 1 . 1 . . . Seal Access 1 | . . . . . . . . . . 1 . . . . . . . . . . . . . . . . . . . . . . . . Unauthorized Hacks 25 | . . . 1 . . . 5 2 . 2 . . . . 2 . 2 . 2 . 2 . 2 . 1 . 1 . . . 1 . . 2 Terminals 17 | . . . 1 . . . 5 . . 2 . . . . 1 . 2 . 1 . 2 . 1 . . . . . . . . . . 2 Track 3 | . . . . . . . . . . . . . . . . . 1 . 1 . . . . . . . . . . . . . . 1 Botnet 12 | . . . 1 . . . 5 . . 2 . . . . 1 . 1 . . . 2 . . . . . . . . . . . . . Disrupt 2 | . . . . . . . . . . . . . . . . . . . . . . . 1 . . . . . . . . . . 1 Fabricators . | . . . . . . . . . . . . . . . . . . . . . . . . . . . . . . . . . . . Repair Stations . | . . . . . . . . . . . . . . . . . . . . . . . . . . . . . . . . . . . Recycling Units . | . . . . . . . . . . . . . . . . . . . . . . . . . . . . . . . . . . . Scanalyzers . | . . . . . . . . . . . . . . . . . . . . . . . . . . . . . . . . . . . Garrison Access 8 | . . . . . . . . 2 . . . . . . 1 . . . 1 . . . 1 . 1 . 1 . . . 1 . . . Reprogram 1 | . . . . . . . . 1 . . . . . . . . . . . . . . . . . . . . . . . . . . Watchers 1 | . . . . . . . . 1 . . . . . . . . . . . . . . . . . . . . . . . . . . Eject 6 | . . . . . . . . . . . . . . . 1 . . . 1 . . . 1 . 1 . 1 . . . 1 . . . Data Cores Recovered 1 | . . . . . . . . . . . . . . . . . . . . . 1 . . . . . . . . . . . . . Used 1 | . . . . . . . . . . . . . . . . . . . . . 1 . . . . . . . . . . . . . Hacking Detections 37 | . 1 . 3 . . . 7 . . 6 . . . . 2 . 3 . 2 . 3 . 1 . 3 . 2 . 2 . 1 . . 1 Full Trace Events . | . . . . . . . . . . . . . . . . . . . . . . . . . . . . . . . . . . . Feedback Events . | . . . . . . . . . . . . . . . . . . . . . . . . . . . . . . . . . . . Feedback Blocked . | . . . . . . . . . . . . . . . . . . . . . . . . . . . . . . . . . . . Robot Schematics Acquired 2 | . . . . . . . . . . . . . 2 . . . . . . . . . . . . . . . . . . . . . Robots Built . | . . . . . . . . . . . . . . . . . . . . . . . . . . . . . . . . . . . Matter . | . . . . . . . . . . . . . . . . . . . . . . . . . . . . . . . . . . . Time . | . . . . . . . . . . . . . . . . . . . . . . . . . . . . . . . . . . . Total Robot Build Rating . | . . . . . . . . . . . . . . . . . . . . . . . . . . . . . . . . . . . Part Schematics Acquired 5 | . . . . . . . . . . . . . 5 . . . . . . . . . . . . . . . . . . . . . Parts Built . | . . . . . . . . . . . . . . . . . . . . . . . . . . . . . . . . . . . Matter . | . . . . . . . . . . . . . . . . . . . . . . . . . . . . . . . . . . . Time . | . . . . . . . . . . . . . . . . . . . . . . . . . . . . . . . . . . . Total Part Build Rating . | . . . . . . . . . . . . . . . . . . . . . . . . . . . . . . . . . . . Parts Repaired . | . . . . . . . . . . . . . . . . . . . . . . . . . . . . . . . . . . . Time . | . . . . . . . . . . . . . . . . . . . . . . . . . . . . . . . . . . . Parts Recycled . | . . . . . . . . . . . . . . . . . . . . . . . . . . . . . . . . . . . Recycled Matter . | . . . . . . . . . . . . . . . . . . . . . . . . . . . . . . . . . . . Retrieved Matter . | . . . . . . . . . . . . . . . . . . . . . . . . . . . . . . . . . . . Retrieved Components . | . . . . . . . . . . . . . . . . . . . . . . . . . . . . . . . . . . . Parts Scanalyzed . | . . . . . . . . . . . . . . . . . . . . . . . . . . . . . . . . . . . Part Schematics Acquired . | . . . . . . . . . . . . . . . . . . . . . . . . . . . . . . . . . . . Parts Damaged . | . . . . . . . . . . . . . . . . . . . . . . . . . . . . . . . . . . . Bothacking | -11 -10 -10 -9 -9 -9 -8 -8 -7 -7 -7 -7 -7 -7 -6 -6 -6 -6 -6 -5 -5 -5 -5 -4 -4 -3 -3 -2 -2 -2 -2 -1 -1 -1 -1 ------------ Run | Scr Mat Min Mat Min Exi Min Mat Fac Gar Fac Low Low Dat Pro Fac Gar Fac Gar Fac Gar Fac Gar Fac Gar Res Gar Res Gar Res Gar Acc Gar Acc Com Used RIF Installer 10 | . . . . . . . . . 1 . . . . . . 1 . 1 . 1 . 1 . 1 . 1 . 1 . 1 . 1 . . Command Fork 1 | . . . . . . . . . . . . . . . . 1 . . . . . . . . . . . . . . . . . . Zone Cloak 1 | . . . . . . . . . . . . . . . . . . . . . . . . 1 . . . . . . . . . . Patrol Navigation 1 | . . . . . . . . . . . . . . . . . . . . . . 1 . . . . . . . . . . . . Watcher Feeds 1 | . . . . . . . . . . . . . . . . . . 1 . . . . . . . . . . . . . . . . Alert ID Control 1 | . . . . . . . . . . . . . . . . . . . . . . . . . . . . 1 . . . . . . Structural Interface 1 | . . . . . . . . . . . . . . . . . . . . 1 . . . . . . . . . . . . . . Program Shield 1 | . . . . . . . . . . . . . . . . . . . . . . . . . . 1 . . . . . . . . Autoassimilate 1 | . . . . . . . . . . . . . . . . . . . . . . . . . . . . . . . . 1 . . Crosswire 1 | . . . . . . . . . . . . . . . . . . . . . . . . . . . . . . 1 . . . . Robots Hacked 189 | . . . . . . . . . . 6 1 6 . 2 . 2 4 9 5 9 1 4 8 5 5 11 8 12 1 17 14 22 11 26 Non-combat 23 | . . . . . . . . . . 6 . . . . . . 3 1 . . 1 . 3 . 1 . . . . . 4 . 2 2 Combat 166 | . . . . . . . . . . . 1 6 . 2 . 2 1 8 5 9 . 4 5 5 4 11 8 12 1 17 10 22 9 24 Autoassimilated 13 | . . . . . . . . . . . . . . . . . . . . . . . . . . . . . . . . . 3 10 Robot Hacks Applied 201 | . . . . . . . . . . 6 1 7 . 2 . 2 5 13 7 9 1 4 12 6 6 11 9 13 1 17 18 23 11 17 parse_system 8 | . . . . . . . . . . . . . . . . . 1 . 1 . . . . . . . . . . . 1 2 2 1 no_distress 1 | . . . . . . . . . . . . . . . . . . . . . . . 1 . . . . . . . . . . . map_walls 2 | . . . . . . . . . . 1 . . . . . . 1 . . . . . . . . . . . . . . . . . drop_inventory 7 | . . . . . . . . . . 3 . . . . . . 1 . . . . . 1 . 1 . . . . . . . 1 . ignore_parts 2 | . . . . . . . . . . 1 . . . . . . . . . . . . . . . . . . . . 1 . . . check_alert 1 | . . . . . . . . . . . . . . . . . . . . . 1 . . . . . . . . . . . . . purge_threat 8 | . . . . . . . . . . . . . . . . . . . . . . . 4 . . . . . . . 2 . 2 . block_reporting 1 | . . . . . . . . . . . . . . . . . . . . . . . . . . . . . . . . . . 1 map_route 2 | . . . . . . . . . . 1 . . . . . . . . . . . . . . . . . . . . 1 . . . mark_security 1 | . . . . . . . . . . . . . . . . . . . . . . . . . . . . . . . . . . 1 find_garrison 5 | . . . . . . . . . . . . . . . . . . . 1 . . . 1 . 1 . 1 . . . 1 . . . focus_fire 1 | . . . . . . . . . . . . . . . . . . . . . . . . 1 . . . . . . . . . . reboot_propulsion 2 | . . . . . . . . . . . . . . . . . . 1 . 1 . . . . . . . . . . . . . . scatter_targeting 3 | . . . . . . . . . . . . . . . . . . . 1 . . . . 1 . 1 . . . . . . . . broadcast_data 1 | . . . . . . . . . . . . . . . . . . . . . . . . . . 1 . . . . . . . . disrupt_area 1 | . . . . . . . . . . . . . . . . . . . . . . . . . . . . . . . . . . 1 spike_heat 23 | . . . . . . . . . . . . . . . . . . 4 . 2 . 1 1 . 1 1 1 3 . 3 3 2 1 . amplify_resonance 3 | . . . . . . . . . . . . . . . . . . 1 . . . . 1 1 . . . . . . . . . . wipe_record 2 | . . . . . . . . . . . . 1 . . . . . . . . . . . 1 . . . . . . . . . . disable_weapons 1 | . . . . . . . . . . . . . . . . . . 1 . . . . . . . . . . . . . . . . reboot_system 3 | . . . . . . . . . . . . . . . . . . . . 1 . . 1 . . . . . . . . . 1 . go_dormant 1 | . . . . . . . . . . . . . . . . . . . . . . . . . . . . . . . . 1 . . overwrite_iff 23 | . . . . . . . . . . . . 1 . 1 . 1 1 4 . 1 . . . . 1 1 3 1 . 2 . 2 1 3 streamctrl_high 25 | . . . . . . . . . . . . 4 . . . 1 . 1 . . . 3 2 1 . 2 2 6 . . . 1 . 2 formatsys_low 4 | . . . . . . . . . . . . . . . . . 1 . . . . . . . . . . . . . 2 . 1 . formatsys_high 70 | . . . . . . . . . . . 1 1 . 1 . . . 1 4 4 . . . 1 2 5 2 3 1 12 7 15 2 8 Relay Couplers Released 184 | . . . . . . . . . 16 . . . . . 3 18 . 14 3 17 . 20 4 15 4 15 4 18 . 14 . 19 . . Ejected 18 | . . . . . . . . . . . . . . . 3 . . . 3 . . . 4 . 4 . 4 . . . . . . . Machine Destruction 166 | . . . . . . . . . 16 . . . . . . 18 . 14 . 17 . 20 . 15 . 15 . 18 . 14 . 19 . . Attached 94 | . . . . . . . . . . 1 1 5 . . . 1 1 7 3 6 . 7 2 6 2 11 2 7 . 10 5 11 1 5 Crosswired 21 | . . . . . . . . . . . . . . . . . . . . . . . . . . . . . . 15 . 6 . . Robots Rewired 20 | . . . . . . . . . 12 . . 2 . . . . . . . . . 6 . . . . . . . . . . . . Allies Hacked 1 | . . . . . . . . . . . . . . . . . . . 1 . . . . . . . . . . . . . . . Hacks Repelled . | . . . . . . . . . . . . . . . . . . . . . . . . . . . . . . . . . . . Allies | -11 -10 -10 -9 -9 -9 -8 -8 -7 -7 -7 -7 -7 -7 -6 -6 -6 -6 -6 -5 -5 -5 -5 -4 -4 -3 -3 -2 -2 -2 -2 -1 -1 -1 -1 -------- Run | Scr Mat Min Mat Min Exi Min Mat Fac Gar Fac Low Low Dat Pro Fac Gar Fac Gar Fac Gar Fac Gar Fac Gar Res Gar Res Gar Res Gar Acc Gar Acc Com Total Allies 177 | . . . . . . . . . 12 . 1 8 . 3 . 2 2 8 4 5 . 9 2 2 3 8 9 12 1 16 11 24 8 27 Largest Group 17 | . . . . . . . . . 6 . 1 1 . 3 2 2 2 3 4 9 7 6 6 1 1 4 4 4 1 14 17 13 13 7 Highest-Rated Group 1020 | . . . . . . . . . 176 . 49 49 . 164 135 135 49 101 184 401 331 234 234 49 64 239 221 223 64 944 1020 811 610 408 Highest-Rated Ally 222 | . . . . . . . . . 32 . 49 49 . 94 94 94 29 37 49 49 49 49 56 49 64 64 69 69 64 147 147 222 64 69 Total Orders 166 | . . . . . . . . . 8 . . . . . . 6 . 2 8 14 2 23 2 1 . 25 1 . 2 31 22 15 4 . STAY 92 | . . . . . . . . . 2 . . . . . . 3 . 1 4 8 1 16 2 1 . 15 1 . 1 18 8 9 2 . FOLLOW 70 | . . . . . . . . . 6 . . . . . . 3 . 1 4 6 1 7 . . . 10 . . 1 13 10 6 2 . AID 4 | . . . . . . . . . . . . . . . . . . . . . . . . . . . . . . . 4 . . . Ally Attacks 962 | . . . . . . . . . 56 . 1 18 . 13 . 21 2 17 9 42 16 64 38 20 5 73 44 36 . 46 192 75 118 56 Total Damage 34056 | . . . . . . . . . 1632 . 25 402 . 529 . 825 40 261 342 1457 1172 2538 1070 407 100 2545 1926 1398 . 1458 7323 3702 2990 1914 Kills 174 | . . . . . . . . . 13 . 1 2 . 4 . 5 . 2 2 10 8 12 5 1 1 11 8 5 . 7 37 20 13 7 Allies Corrupted 16 | . . . . . . . . . . . . . . . . . . . . . . . . 1 . . . . . . 13 2 . . Allies Melted 2 | . . . . . . . . . . . . . . . . 2 . . . . . . . . . . . . . . . . . . Intel | -11 -10 -10 -9 -9 -9 -8 -8 -7 -7 -7 -7 -7 -7 -6 -6 -6 -6 -6 -5 -5 -5 -5 -4 -4 -3 -3 -2 -2 -2 -2 -1 -1 -1 -1 ------- Run | Scr Mat Min Mat Min Exi Min Mat Fac Gar Fac Low Low Dat Pro Fac Gar Fac Gar Fac Gar Fac Gar Fac Gar Res Gar Res Gar Res Gar Acc Gar Acc Com Robot Analysis Total . | . . . . . . . . . . . . . . . . . . . . . . . . . . . . . . . . . . . Derelict Logs Recovered 8 | . . 1 . 1 . . . . . . 2 1 . 3 . . . . . . . . . . . . . . . . . . . . Drone Launches . | . . . . . . . . . . . . . . . . . . . . . . . . . . . . . . . . . . . Drone Recoveries . | . . . . . . . . . . . . . . . . . . . . . . . . . . . . . . . . . . . Exploration | -11 -10 -10 -9 -9 -9 -8 -8 -7 -7 -7 -7 -7 -7 -6 -6 -6 -6 -6 -5 -5 -5 -5 -4 -4 -3 -3 -2 -2 -2 -2 -1 -1 -1 -1 ------------- Run | Scr Mat Min Mat Min Exi Min Mat Fac Gar Fac Low Low Dat Pro Fac Gar Fac Gar Fac Gar Fac Gar Fac Gar Res Gar Res Gar Res Gar Acc Gar Acc Com Turns Passed 45347 | 42 615 567 267 600 459 366 897 355 3255 1951 818 588 104 585 295 3233 271 3944 882 2741 369 3621 1345 1731 1071 3000 1161 1906 733 2228 1632 2544 624 547 Spaces Moved 23782 | 36 399 526 163 437 436 254 570 179 1696 974 534 353 75 391 204 1309 133 1688 511 1663 257 1805 534 910 532 1507 477 1034 376 1164 746 1241 358 310 Core 14 | 1 . . . . . . . . . . . . . . . . . 1 . . . . . . . . . . . . . . . 12 Treads 574 | . . . . . . . . . . . . . . . . 574 . . . . . . . . . . . . . . . . . . Legs 8591 | . . . . . . . . . . . . . . . . 20 . 2 . . . . . 836 532 1507 477 1034 376 1164 746 1241 358 298 Wheels 14603 | 35 399 526 163 437 436 254 570 179 1696 974 534 353 75 391 204 715 133 1685 511 1663 257 1805 534 74 . . . . . . . . . . Hover . | . . . . . . . . . . . . . . . . . . . . . . . . . . . . . . . . . . . Flight . | . . . . . . . . . . . . . . . . . . . . . . . . . . . . . . . . . . . Fastest Speed 50 | 50 80 90 100 95 105 95 100 130 120 130 140 130 140 140 115 120 120 115 125 125 125 125 125 145 146 146 145 142 147 147 145 142 142 50 Average Speed 137 | 79 88 99 100 104 105 108 112 130 131 139 140 139 140 140 124 167 122 133 125 125 125 125 154 150 153 164 156 144 147 147 145 145 143 140 Slowest Speed 1950 | 80 120 100 100 120 105 130 130 130 160 140 140 140 140 140 125 240 125 1950 125 125 125 125 210 270 180 205 176 147 147 150 147 176 145 145 Overloaded Moves . | . . . . . . . . . . . . . . . . . . . . . . . . . . . . . . . . . . . Propulsion Burnouts . | . . . . . . . . . . . . . . . . . . . . . . . . . . . . . . . . . . . Robots Hopped . | . . . . . . . . . . . . . . . . . . . . . . . . . . . . . . . . . . . Cave-ins Triggered 2 | . . . . . . . . . . . . . . . . . . 2 . . . . . . . . . . . . . . . . Exploration Rate (%) 52 | 3 52 91 29 76 79 63 54 6 90 29 67 45 68 61 7 96 6 95 6 96 9 99 24 97 16 97 15 98 9 99 25 97 10 20 Regions Visited 34 Branch Regions 9 Pre-discovered Areas 4 | . . 1 . . 1 . . . . . . . 1 1 . . . . . . . . . . . . . . . . . . . . Known Exits Taken 15 | . . . 1 . . 1 1 1 . 1 . 1 . . 1 . 1 . 1 . 1 . 1 . 1 . 1 . 1 . 1 . . . Unknown Exits Taken 9 | 1 1 1 . 1 1 . . . . . 1 . 1 1 . . . . . . . . . . . . . . . . . . 1 . Scrap Searched 14 | . . 2 . 3 . 1 . . . . 3 2 . 3 . . . . . . . . . . . . . . . . . . . . Spaces Dug 174 | . . . . . . 10 11 . . 15 . . . . 5 2 2 11 5 1 . . 51 . 2 5 12 2 4 16 12 2 5 1 Terrain Destroyed 594 | . . . . 6 . 32 23 11 11 15 22 . . 18 5 9 2 15 54 36 . 12 96 39 2 11 21 2 4 17 55 2 5 69 Melee 26 | . . . . . . . 3 . . 15 . . . . 1 2 2 1 . . . . . . . . . . . . . 2 . . Projectile 173 | . . . . . . . 8 . 3 . . . . . 4 4 . 14 8 2 . . 31 2 2 11 21 2 4 17 33 . 5 2 AOE 395 | . . . . 6 . 32 12 11 8 . 22 . . 18 . 3 . . 46 34 . 12 65 37 . . . . . . 22 . . 67 Terrain Rammed . | . . . . . . . . . . . . . . . . . . . . . . . . . . . . . . . . . . . Walls Destroyed . | . . . . . . . . . . . . . . . . . . . . . . . . . . . . . . . . . . . Machines Disabled . | . . . . . . . . . . . . . . . . . . . . . . . . . . . . . . . . . . . Actions | -11 -10 -10 -9 -9 -9 -8 -8 -7 -7 -7 -7 -7 -7 -6 -6 -6 -6 -6 -5 -5 -5 -5 -4 -4 -3 -3 -2 -2 -2 -2 -1 -1 -1 -1 --------- Run | Scr Mat Min Mat Min Exi Min Mat Fac Gar Fac Low Low Dat Pro Fac Gar Fac Gar Fac Gar Fac Gar Fac Gar Res Gar Res Gar Res Gar Acc Gar Acc Com Total 34548 | 44 535 554 214 518 437 306 721 284 2558 1503 578 405 74 420 231 2213 233 3208 721 2278 301 3071 927 1184 758 1973 825 1371 549 1635 1156 1906 447 410 Wait 7076 | . 45 5 16 30 . 3 25 85 510 435 16 1 . 10 . 662 49 1180 135 460 18 1001 267 141 133 307 240 159 146 322 217 423 25 10 Move 23746 | 35 398 525 162 436 435 253 569 178 1695 973 533 352 74 390 203 1308 133 1685 510 1662 257 1803 533 909 531 1506 476 1033 375 1162 746 1239 357 310 Hop . | . . . . . . . . . . . . . . . . . . . . . . . . . . . . . . . . . . . Pick Up 361 | 2 11 5 3 7 1 1 19 4 35 7 3 3 . 2 7 32 1 25 8 19 3 29 9 10 11 18 5 15 1 16 14 28 5 2 Fast Attach 241 | 6 2 . 2 4 . 9 16 . 7 7 1 4 . . 2 6 1 5 8 . 2 12 3 11 19 20 11 13 7 6 15 23 8 11 Attach 191 | . 4 2 1 4 . 4 4 2 15 . 1 7 . 2 2 18 1 17 4 3 1 4 9 5 7 5 2 16 2 8 15 14 . 12 Detach 30 | . . . . . . . 1 . 2 . . . . 1 . 5 . 4 . 1 . 1 . 1 3 1 2 4 . 2 1 1 . . Swap 194 | . 4 2 1 . . . 6 3 7 15 6 6 . 4 4 8 2 18 5 12 . 11 6 13 4 10 1 9 1 4 13 10 3 6 Drop 410 | . 4 4 2 5 1 5 17 2 28 18 3 1 . 2 3 28 4 17 11 16 5 41 4 15 23 32 11 13 8 12 14 33 11 17 Fire 1625 | 1 67 9 27 32 . 29 43 10 106 28 14 31 . 9 9 73 8 155 37 66 7 83 96 68 26 55 77 80 9 73 119 102 38 38 Melee 105 | . . . . . . 2 20 . . 20 . . . . 1 29 2 13 . . . 12 . . . . . 4 . . . 2 . . Ram 4 | . . . . . . . . . . . . . . . . . . . . . . . . . . . . . . . . . . 4 Kick . | . . . . . . . . . . . . . . . . . . . . . . . . . . . . . . . . . . . Crush . | . . . . . . . . . . . . . . . . . . . . . . . . . . . . . . . . . . . Escape Stasis 355 | . . . . . . . . . 27 . . . . . . 36 32 87 . 32 8 24 . 10 . 15 . 25 . 30 . 29 . . Rewire 174 | . . . . . . . . . 122 . 1 . . . . . . . 3 2 . 40 . . 1 1 . . . . 2 2 . . Trap 36 | . . 2 . . . . 1 . 4 . . . . . . 8 . 2 . 5 . 10 . 1 . 3 . . . . . . . . Miscellaneous . | . . . . . . . . . . . . . . . . . . . . . . . . . . . . . . . . . . . Route ------- -11/Scrapyard -10/Materials (discovered 2 exits: [*Min x2]) -10/Mines -9/Materials (discovered 5 exits: Mat x3 / *Min x2) -9/Mines (discovered 3 exits: *Mat x2 / *Exi) -9/Exiles -8/Mines (discovered 2 exits: *Mat x2) -8/Materials -7/Factory -7/Garrison (discovered 3 exits: *Fac x3) -7/Factory (discovered 2 exits: *Low x2) -7/Lower Caves -7/Lower Caves (discovered 2 exits: *Fac / *Dat) -7/Data Miner -6/Proximity Caves -6/Factory (discovered 2 exits: Low / Gar) -6/Garrison (discovered 3 exits: *Fac x3) -6/Factory -6/Garrison (discovered 3 exits: *Fac x3) -5/Factory -5/Garrison (discovered 3 exits: *Fac x3) -5/Factory -5/Garrison (discovered 3 exits: *Fac x3) -4/Factory (discovered 2 exits: *Res / Gar) -4/Garrison (discovered 3 exits: *Res x3) -3/Research (discovered 2 exits: *Res / Gar) -3/Garrison (discovered 3 exits: *Res x3) -2/Research -2/Garrison (discovered 3 exits: *Res x3) -2/Research -2/Garrison (discovered 3 exits: *Acc x3) -1/Access -1/Garrison (discovered 3 exits: [*Acc x3]) -1/Access -1/Command History --------- Turn | Location | Event 19 | -11/Scrapyard | Discovered new exit (range 16) 43 | -11/Scrapyard | Entered Materials 43 | -10/Materials | Discovered new exit (range 16) 188 | -10/Materials | Discovered new exit (range 14) 351 | -10/Materials | Build established: Mutant 590 | -10/Materials | Lost 3 parts (1p2w) 658 | -10/Materials | Entered Mines 680 | -10/Mines | A weapon hastily lodged in a ceiling crevice suddenly fell to the ground 799 | -10/Mines | Found a hidden stash of uninstalled traps 1078 | -10/Mines | Learned location of Zion (-6) 1218 | -10/Mines | Discovered new exit (range 6) 1225 | -10/Mines | Entered Materials 1225 | -9/Materials | Evolved 2 slots: Utility x2 1338 | -9/Materials | Identified exit to Materials 1360 | -9/Materials | Identified exit to Mines 1492 | -9/Materials | Entered Mines 1540 | -9/Mines | Discovered exit to Materials (range 13) 1561 | -9/Mines | Received a Rocket Launcher from a helpful Derelict 1699 | -9/Mines | Build established: Scavenger-Mutant 1784 | -9/Mines | Discovered exit to Materials (range 9) 1893 | -9/Mines | Deemed a non-threat by the Exiles lab entrance 1893 | -9/Mines | Discovered new exit (range 5) 2074 | -9/Mines | Build established: Mutant 2092 | -9/Mines | Entered Exiles 2118 | -9/Exiles | Met 8R-AWN 2136 | -9/Exiles | Met EX-HEX 2206 | -9/Exiles | Met EX-DEC 2260 | -9/Exiles | Discovered new exit (range 10) 2335 | -9/Exiles | Visited The Gauntlet 2405 | -9/Exiles | Met EX-BIN 2420 | -9/Exiles | Aligned with FarCom system 2421 | -9/Exiles | Given EX-Vault access code 2445 | -9/Exiles | Opened EX-Vault 2452 | -9/Exiles | Found PSU Rigger 2475 | -9/Exiles | Warned to stay clear of 0b10 Research branches 2551 | -9/Exiles | Left Exiles lab with PSU Rigger 2551 | -9/Exiles | Entered Mines 2630 | -8/Mines | Lost 6 parts (1n2u3w) 2885 | -8/Mines | Discovered exit to Materials (range 10) 2912 | -8/Mines | Discovered exit to Materials (range 6) 2917 | -8/Mines | Entered Materials 2917 | -8/Materials | Evolved 2 slots: Utility x2 2918 | -8/Materials | Identified exit to Factory 3065 | -8/Materials | Lost 3 parts (1p1n1u) 3814 | -8/Materials | Entered Factory 3814 | -7/Factory | Evolved 2 slots: Utility x2 3862 | -7/Factory | Build established: Hauler-Mutant 3898 | -7/Factory | Identified exit to Garrison 4169 | -7/Factory | Entered Garrison 4313 | -7/Garrison | Triggered checkpoint 4322 | -7/Garrison | Triggered checkpoint 4344 | -7/Garrison | Triggered checkpoint 4372 | -7/Garrison | Destroyed 7 combat bots 4389 | -7/Garrison | Triggered checkpoint 4474 | -7/Garrison | Triggered checkpoint 4781 | -7/Garrison | Discovered new exit (range 9) 4799 | -7/Garrison | Installed Relay Interface Framework 4852 | -7/Garrison | Triggered checkpoint 4869 | -7/Garrison | Garrison Relay disabled 5013 | -7/Garrison | Garrison Relay disabled 5096 | -7/Garrison | Triggered checkpoint 5128 | -7/Garrison | Build established: Scavenger-Mutant 5402 | -7/Garrison | Triggered checkpoint 5479 | -7/Garrison | Discovered new exit (range 15) 5622 | -7/Garrison | Triggered checkpoint 5760 | -7/Garrison | Triggered checkpoint 5933 | -7/Garrison | Discovered new exit (range 12) 6024 | -7/Garrison | Triggered checkpoint 6133 | -7/Garrison | Garrison Relay disabled 7110 | -7/Garrison | Garrison Relay disabled 7423 | -7/Garrison | Build established: Bothacker-Mutant 7424 | -7/Garrison | Entered Factory 8371 | -7/Factory | Identified exit to Lower Caves 9375 | -7/Factory | Entered Lower Caves 9512 | -7/Lower Caves | Learned Factory emergency access door positions 9571 | -7/Lower Caves | Learned 4 Factory zone layouts 10179 | -7/Lower Caves | Discovered new exit (range 10) 10193 | -7/Lower Caves | Entered another Lower Caves area 10193 | -7/Lower Caves | Accompanied by 1 ally 10194 | -7/Lower Caves | P-60 Hacker assimilated allied Sentinel 4a 10220 | -7/Lower Caves | Discovered new exit (range 16) 10263 | -7/Lower Caves | Identified exit to Data Miner 10272 | -7/Lower Caves | Attracted the attention of an 0b10 outpost 10279 | -7/Lower Caves | Core integrity fell below 50% 10348 | -7/Lower Caves | Lost 3 parts (2u1w) 10411 | -7/Lower Caves | Spotted B-75 Beast 10781 | -7/Lower Caves | Entered Data Miner 10781 | -7/Data Miner | Discovered new exit (range 6) 10808 | -7/Data Miner | Met Data Miner 10835 | -7/Data Miner | Acquired the access code to Warlord's prototype stash 10835 | -7/Data Miner | Learned location of Section 7 (-2) 10853 | -7/Data Miner | Received God Mode back door access code from Data Miner 10885 | -7/Data Miner | Entered Proximity Caves 10960 | -6/Proximity Caves | Escorted by Enhanced Grunt 11093 | -6/Proximity Caves | Learned 8 Factory zone layouts 11210 | -6/Proximity Caves | Learned 4 Factory zone layouts 11435 | -6/Proximity Caves | Discovered new exit (range 10) 11470 | -6/Proximity Caves | Entered Factory 11470 | -6/Factory | Accompanied by 2 allies 11470 | -6/Factory | Evolved 2 slots: Propulsion x1, Weapon x1 11471 | -6/Factory | Identified exit to Lower Caves 11751 | -6/Factory | Identified exit to Garrison 11765 | -6/Factory | Entered Garrison 11765 | -6/Garrison | Accompanied by 2 allies 12179 | -6/Garrison | Triggered checkpoint 12187 | -6/Garrison | Spotted B-75 Beast 12289 | -6/Garrison | Lost 7 parts (1n3u3w) 12921 | -6/Garrison | Garrison Relay disabled 13141 | -6/Garrison | Triggered checkpoint 13220 | -6/Garrison | Discovered new exit (range 13) 13328 | -6/Garrison | Triggered checkpoint 13464 | -6/Garrison | Garrison Relay disabled 13681 | -6/Garrison | Discovered new exit (range 10) 13806 | -6/Garrison | Triggered checkpoint 13878 | -6/Garrison | Garrison Relay disabled 14065 | -6/Garrison | Triggered checkpoint 14248 | -6/Garrison | Triggered checkpoint 14281 | -6/Garrison | Garrison Relay disabled 14322 | -6/Garrison | Discovered new exit (range 10) 14354 | -6/Garrison | Expanded RIF knowledge: Command Fork 14998 | -6/Garrison | Entered Factory 15268 | -6/Factory | Identified exit to Garrison 15269 | -6/Factory | Entered Garrison 15487 | -6/Garrison | Garrison Relay disabled 15920 | -6/Garrison | Triggered checkpoint 16380 | -6/Garrison | Spotted B-75 Beast 16520 | -6/Garrison | Triggered checkpoint 17322 | -6/Garrison | Triggered checkpoint 17335 | -6/Garrison | Garrison Relay disabled 17386 | -6/Garrison | Discovered new exit (range 15) 17415 | -6/Garrison | Expanded RIF knowledge: Patrol Navigation 17588 | -6/Garrison | Destroyed B-75 Beast 17607 | -6/Garrison | Crushed by falling debris 17638 | -6/Garrison | Lost 3 parts (1p1n1u) 17868 | -6/Garrison | Crushed by falling debris 17869 | -6/Garrison | System corruption reached 10% 17899 | -6/Garrison | Lost 4 parts (1n2u1w) 18082 | -6/Garrison | Triggered checkpoint 18140 | -6/Garrison | Discovered new exit (range 10) 18226 | -6/Garrison | Triggered checkpoint 18331 | -6/Garrison | Discovered new exit (range 9) 18412 | -6/Garrison | Triggered checkpoint 18451 | -6/Garrison | Garrison Relay disabled 18720 | -6/Garrison | Triggered checkpoint 18766 | -6/Garrison | Garrison Relay disabled 19213 | -6/Garrison | Entered Factory 19213 | -5/Factory | Accompanied by 1 ally 19213 | -5/Factory | Evolved 2 slots: Utility x2 19513 | -5/Factory | First assault squad dispatched 19529 | -5/Factory | Incoming assault squad redirected 19729 | -5/Factory | Garrison activated, responded to threat 20088 | -5/Factory | Identified exit to Garrison 20095 | -5/Factory | Entered Garrison 20095 | -5/Garrison | Accompanied by 4 allies 20148 | -5/Garrison | Triggered checkpoint 20155 | -5/Garrison | Garrison Relay disabled 20640 | -5/Garrison | Spotted B-75 Beast 20814 | -5/Garrison | Triggered checkpoint 20826 | -5/Garrison | Triggered checkpoint 20833 | -5/Garrison | Allies destroyed B-75 Beast 20872 | -5/Garrison | Triggered checkpoint 20960 | -5/Garrison | Discovered new exit (range 14) 21820 | -5/Garrison | Garrison Relay disabled 21988 | -5/Garrison | Triggered checkpoint 22051 | -5/Garrison | Garrison Relay disabled 22115 | -5/Garrison | Discovered new exit (range 13) 22138 | -5/Garrison | Expanded RIF knowledge: Structural Interface 22302 | -5/Garrison | Triggered checkpoint 22320 | -5/Garrison | Garrison Relay disabled 22348 | -5/Garrison | Discovered new exit (range 8) 22445 | -5/Garrison | Build established: Botlord-Mutant 22836 | -5/Garrison | Entered Factory 22836 | -5/Factory | Accompanied by 7 allies 23199 | -5/Factory | Identified exit to Garrison 23205 | -5/Factory | Entered Garrison 23205 | -5/Garrison | Accompanied by 4 allies 23277 | -5/Garrison | Triggered checkpoint 23317 | -5/Garrison | Garrison Relay disabled 23499 | -5/Garrison | Spotted B-75 Beast 23541 | -5/Garrison | Allies destroyed B-75 Beast 23653 | -5/Garrison | Triggered checkpoint 23769 | -5/Garrison | Triggered checkpoint 23908 | -5/Garrison | Garrison Relay disabled 23949 | -5/Garrison | Discovered new exit (range 15) 23975 | -5/Garrison | Expanded RIF knowledge: Watcher Feeds 24034 | -5/Garrison | Triggered checkpoint 24126 | -5/Garrison | Discovered new exit (range 11) 24230 | -5/Garrison | Triggered checkpoint 24311 | -5/Garrison | Triggered checkpoint 24441 | -5/Garrison | Triggered checkpoint 24508 | -5/Garrison | Garrison Relay disabled 24548 | -5/Garrison | Garrison Relay disabled 25608 | -5/Garrison | Discovered new exit (range 14) 25924 | -5/Garrison | Triggered checkpoint 25928 | -5/Garrison | Triggered checkpoint 26028 | -5/Garrison | Garrison Relay disabled 26826 | -5/Garrison | Entered Factory 26826 | -4/Factory | Accompanied by 6 allies 26826 | -4/Factory | Evolved 2 slots: Utility x2 27094 | -4/Factory | P-70 Sage assimilated allied Sentinel 6k 27313 | -4/Factory | Discovered new exit (range 28) 27609 | -4/Factory | System corruption reached 10% 28158 | -4/Factory | Identified exit to Garrison 28171 | -4/Factory | Entered Garrison 28179 | -4/Garrison | Expanded RIF knowledge: Zone Cloak 28216 | -4/Garrison | Garrison Relay disabled 28509 | -4/Garrison | Triggered checkpoint 28532 | -4/Garrison | Triggered checkpoint 28584 | -4/Garrison | Destroyed 11 combat bots 28696 | -4/Garrison | Triggered checkpoint 28883 | -4/Garrison | Discovered new exit (range 10) 28896 | -4/Garrison | Triggered checkpoint 28913 | -4/Garrison | Garrison Relay disabled 29113 | -4/Garrison | Garrison Relay disabled 29158 | -4/Garrison | Discovered new exit (range 15) 29293 | -4/Garrison | Discovered new exit (range 5) 29359 | -4/Garrison | Triggered checkpoint 29537 | -4/Garrison | Garrison Relay disabled 29622 | -4/Garrison | Build established: Botlord-Skirmisher 29902 | -4/Garrison | Entered Research 29902 | -3/Research | Evolved 2 slots: Utility x2 29928 | -3/Research | Discovered new exit (range 10) 30105 | -3/Research | Found Unknown Launcher 30105 | -3/Research | Identified Gamma Bomb Array 30648 | -3/Research | Build established: Botlord-Mutant 30949 | -3/Research | Identified exit to Garrison 30973 | -3/Research | Entered Garrison 31217 | -3/Garrison | Triggered checkpoint 31353 | -3/Garrison | Spotted B-86 Titan 31365 | -3/Garrison | Triggered checkpoint 31369 | -3/Garrison | Triggered checkpoint 31912 | -3/Garrison | Destroyed B-86 Titan 32030 | -3/Garrison | Triggered checkpoint 32103 | -3/Garrison | Triggered checkpoint 32257 | -3/Garrison | Garrison Relay disabled 32290 | -3/Garrison | Discovered new exit (range 8) 32314 | -3/Garrison | Expanded RIF knowledge: Program Shield 32542 | -3/Garrison | Garrison Relay disabled 32620 | -3/Garrison | Discovered new exit (range 9) 32763 | -3/Garrison | Discovered new exit (range 22) 32911 | -3/Garrison | Triggered checkpoint 32970 | -3/Garrison | Garrison Relay disabled 33294 | -3/Garrison | Triggered checkpoint 33533 | -3/Garrison | Build established: Botlord-Skirmisher 33610 | -3/Garrison | Garrison Relay disabled 33973 | -3/Garrison | Entered Research 33973 | -2/Research | Accompanied by 2 allies 33973 | -2/Research | Evolved 2 slots: Propulsion x1, Utility x1 34367 | -2/Research | Build established: Botlord-Mutant 34458 | -2/Research | Found Prototype Launcher 34458 | -2/Research | Identified Enh. Gamma Bomb Array 34836 | -2/Research | Found Unknown Device 34836 | -2/Research | Identified Quantum Capacitor 34973 | -2/Research | First assault squad dispatched 34988 | -2/Research | Incoming assault squad redirected 35094 | -2/Research | Garrison activated, responded to threat 35127 | -2/Research | Identified exit to Garrison 35134 | -2/Research | Entered Garrison 35142 | -2/Garrison | Expanded RIF knowledge: Alert ID Control 35215 | -2/Garrison | Garrison Relay disabled 35334 | -2/Garrison | Spotted B-90 Cyclops 35393 | -2/Garrison | Triggered checkpoint 35447 | -2/Garrison | Lost 3 parts (1u2w) 35590 | -2/Garrison | Lost 4 parts (1p3u) 35615 | -2/Garrison | Discovered new exit (range 3) 35686 | -2/Garrison | Destroyed B-90 Cyclops 35783 | -2/Garrison | Discovered new exit (range 3) 35817 | -2/Garrison | Garrison Relay disabled 36054 | -2/Garrison | Discovered new exit (range 12) 36124 | -2/Garrison | Triggered checkpoint 36244 | -2/Garrison | Triggered checkpoint 36341 | -2/Garrison | Garrison Relay disabled 36768 | -2/Garrison | Triggered checkpoint 36884 | -2/Garrison | Garrison Relay disabled 37040 | -2/Garrison | Entered Research 37090 | -2/Research | Identified exit to Garrison 37250 | -2/Research | Found Prototype Device 37250 | -2/Research | Identified Thermal Barrier 37417 | -2/Research | Spotted B-90 Cyclops 37773 | -2/Research | Entered Garrison 37773 | -2/Garrison | Accompanied by 1 ally 37840 | -2/Garrison | Triggered checkpoint 37969 | -2/Garrison | Garrison Relay disabled 38242 | -2/Garrison | Spotted B-90 Cyclops 38498 | -2/Garrison | Triggered checkpoint 38500 | -2/Garrison | Assimilated Cyclops 9a with formatsys_high 38502 | -2/Garrison | Triggered checkpoint 38546 | -2/Garrison | Triggered checkpoint 38646 | -2/Garrison | Discovered new exit (range 3) 38658 | -2/Garrison | Expanded RIF knowledge: Crosswire 38698 | -2/Garrison | Triggered checkpoint 38716 | -2/Garrison | Garrison Relay disabled 39020 | -2/Garrison | Triggered checkpoint 39227 | -2/Garrison | Discovered new exit (range 5) 39252 | -2/Garrison | Triggered checkpoint 39272 | -2/Garrison | Garrison Relay disabled 39429 | -2/Garrison | Discovered new exit (range 10) 39556 | -2/Garrison | Triggered checkpoint 39608 | -2/Garrison | Garrison Relay disabled 40001 | -2/Garrison | Entered Access 40001 | -1/Access | Accompanied by 14 allies 40001 | -1/Access | Evolved 2 slots: Power x1, Utility x1 40731 | -1/Access | Spotted B-99 Colossus 41107 | -1/Access | Found Prototype Launcher 41107 | -1/Access | Identified Ragnarok Missile Launcher 41203 | -1/Access | System corruption reached 10% 41242 | -1/Access | Lost 5 parts (2p3u) 41416 | -1/Access | Lost 3 parts (1n1u1w) 41629 | -1/Access | Identified exit to Garrison 41633 | -1/Access | Entered Garrison 41633 | -1/Garrison | Accompanied by 1 ally 41941 | -1/Garrison | Garrison Relay disabled 42146 | -1/Garrison | Spotted B-99 Colossus 42150 | -1/Garrison | Triggered checkpoint 42152 | -1/Garrison | Triggered checkpoint 42161 | -1/Garrison | Triggered checkpoint 42164 | -1/Garrison | Hijacked Colossus 10a control node with streamctrl_high 42182 | -1/Garrison | Triggered checkpoint 42196 | -1/Garrison | Lost 6 parts (2n2u2w) 42549 | -1/Garrison | Discovered new exit (range 10) 42731 | -1/Garrison | Triggered checkpoint 42855 | -1/Garrison | Discovered new exit (range 12) 42978 | -1/Garrison | Triggered checkpoint 43095 | -1/Garrison | Destroyed Colossus 10a 43100 | -1/Garrison | Found Prototype Ballistic Gun 43100 | -1/Garrison | Identified Multirail 43108 | -1/Garrison | Found Multirail 43194 | -1/Garrison | Garrison Relay disabled 43368 | -1/Garrison | Garrison Relay disabled 43704 | -1/Garrison | Triggered checkpoint 43749 | -1/Garrison | Garrison Relay disabled 44041 | -1/Garrison | Found Hvy. Insulated Plating 44131 | -1/Garrison | Discovered new exit (range 9) 44151 | -1/Garrison | Expanded RIF knowledge: Autoassimilate 44177 | -1/Garrison | Entered Access 44177 | -1/Access | Accompanied by 11 allies 44780 | -1/Access | Discovered new exit (range 7) 44801 | -1/Access | Entered Command 44801 | -1/Command | Accompanied by 7 allies 45322 | -1/Command | Core integrity fell below 50% 45336 | -1/Command | System corruption reached 30% 45340 | -1/Command | Core integrity fell below 20% 45348 | -1/Command | Destroyed by G-73 Enforcer with Phase Gun Last Messages --------------- 45340_ Slug penetrates Wall. 45340_ Slug penetrates P-80 Master. 45340_ P-80 Master suffers critical hit. 45340_ P-80 Master resets P-80 Master, system corruption cleaned. 45340_ P-80 Master resets G-73 Enforcer, system corruption cleaned. 45340_ K-01 Serf collects debris. 45341_ G-73 Enforcer heat spikes uncontrollably. 45341_ Slug penetrates G-73 Enforcer. 45341_ Slug penetrates Wall. 45341_ Exp. Matter Compressor destroyed. 45342_ Slammed into G-73 Enforcer. 45342_ Destabilizing: Core damaged (-32). 45342_ Relay Coupler [Sentry] destroyed. 45342_ Relay Coupler [C] destroyed. 45343_ RIF reveals location of phase wall. 45344_ Slammed into G-73 Enforcer. 45344_ Destabilizing: System corrupted (+1). 45345_ Slammed into G-73 Enforcer. 45346_ RIF reveals location of phase wall. 45347_ System corrupted: Heat flow error (+112). Map ----- +----------------------------------------------------+ | ?????????????# !%[*!=%!==!R* " ### | | ?????????????# =!%%%=%=*%%!! R+ + # | | ????????????????????++##[*!=%%%!== #### #### # | | ????????????????????????#[**%|! =[k ## #?# # | | ????????????????????????#%![!= *[ ##=%*#?#^^+ | | ????????????????????????#![%# ## #?# # | | ????????????????????????#%= # !!* #?####### ### | | ????????????????????????#[=%==!![! ###????# ## | | ????????????????????????# =%#%gh=| #????# " ## | | ???????????????????????## !%!=gh!#! #?????# "T ## | | ???????????????????????# [![%h%!%= #??????# ## | | ???????????????????????# *#=!p!# #??????## ### | | ???????????????????????? ?#[g%!#??????????# #?# | | ???????????????????????? ?#g!!=#??????????# #?# | | ???????????????????p???? p?#!p[/#??????????# #?? | | ???????????????????????? g ?#pgp=#??????????# #?? | | ????????????????????????#g#?##p###??????????# #?? | | ????????????????????#???# #??#p#????????????# #?? | | ????????????????????# ??# #??#g#????????????# #?? | | ???????????????# #### ###p####g#????????????# #?? | | ???????????????# p%gppg#????????????# ?? | | ???????????????########//g######????????????#+##?? | | ??????????????????????# #??????????????????????? | | ??????????????????????# #??????????????????????? | | ??????????????????????# #??????????????????????? | | ??????????????????????# @#??????????????????????? | | ??????????????????????# #??????????????????????? | | ??????????????????????# #??????????????????????? | | ??????????????????????# #??????????????????????? | | ??????????????????????# #??????????????????????? | | ??????????????????????# #??????????????????????? | | ??????????????????????# #??????????????????????? | | ??????????????????????# #??????????????????????? | | ??????????????????????# #??????????????????????? | | ??????????????????????# #??????????????????????? | | ??????????????????????# #??????????????????????? | | ??????????????????????# #??????????????????????? | | ??????????????????????# #??????????????????????? | | ??????????????????????# ???????????????????????? | | ??????????????????????# ???????????????????????? | | ??????????????????????# ???????????????????????? | | ??????????????????????# ???????????????????????? | | ??????????????????????####???????????????????????? | | ?????????????????????????????????????????????????? | | ?????????????????????????????????????????????????? | | ?????????????????????????????????????????????????? | | ?????????????????????????????????????????????????? | | ?????????????????????????????????????????????????? | | ?????????????????????????????????????????????????? | | ?????????????????????????????????????????????????? | +----------------------------------------------------+ Best States ------------- Heat Dissipation 99 Coolant Potential 160 Energy Generation 49 Energy Capacity 1080 Matter Stores 800 Matter Capacity 800 Sight Range 23 Robot Scan Range 13 Terrain Scan Range 24 Terrain Scan Density 10 Power Amplification 30 Armor Coverage 1425 Resistance: TH 15 Resistance: EM 25 Core Shielding 30 Utility Shielding 66 Weapon Shielding 66 Evasion (%) 50 Targeting Accuracy 8 Recoil Reduction 6 Overload Amplification 100 Stasis Canceling 2 Offensive Hacking 10 Relay Coupler Types 176 Relay Coupler Value 9 Item Schematics ----------------- Exp. Transmission Jammer | -7/Data Miner | Free Cloaking Device | -7/Data Miner | Free Kinetic Spear | -7/Data Miner | Free Lgt. Regenerative Plating | -7/Data Miner | Free Combat Drone Bay | -7/Data Miner | Free Robot Schematics ------------------ I-36 Angel | -7/Data Miner | Free H-66 Slayer | -7/Data Miner | Free Fabricated ------------ Nothing Alien Tech Used ----------------- None Achievements -------------- Maybe Next Time I'll Detach My Launcher Challenges ------------ None Game ------ Seed ReflectiveVariableConverter Manual? 0 Play Time 07:26:24 Cumulative 275.5 hours Start 2021.05.18 @ 06:17:39 End 2021.05.18 @ 18:34:40 Sessions 3 Manual Loads 0 Difficulty Rogue Special Mode None Game No. 109 Rogue 109 Adventurer 0 Explorer 0 Win Type - Total 10 Types 8/0/1/1/0/0/0/0/0 Lore% 73 Gallery% 83 Achievement% 67 Wizard Run 0 Options --------- ASCII 0 Keyboard 0 Movement Mouse Keybinds 0 Fullscreen 2 Font 12/Smallcaps Map View 83x54 Tactical HUD 1 Map Filters NONE Filters NONE Steam X RUN: dd7b6456-fd86-4612-982c-8c26b211bf9a